{"text_format":"1","workbook":"xlsx","n_sheets":23,"sheets":["Cover Page","Facility Info","Contents","Operational Data","Operational Summary","Perf. Form 1","Energy Form 1","Permit Compliance","Improvements","Public Liasion","CO2 N2O","Residue Quality ","Water","Air (periodic)","Air (CEMS)","HCl","SO2","NOx","TOC","Particulates","CO 95% 10 min","NH3","Template changes log"],"not_rendered":{"charts":7,"images":3,"macros":1,"external_links":0,"defined_names":23,"comments":0,"pivot_tables":0},"unopened":[],"bounds":{"document_bytes":16777216,"sheet_cells":100000,"rows_first":2000,"rows_last":500,"rows_between":2000,"halvings":0,"cell_chars":16384,"cell_head_chars":4096},"cells_cut":0,"cells_raw":0,"read":"whole","date_system":"1900"}

{"sheet":"Cover Page","index":0,"n_rows":54,"n_cols":14,"rows_kept":54,"cut":false,"hidden":false,"merged":[[13,13,18,15],[34,1,34,8],[0,3,5,6],[7,1,23,8],[28,1,28,8],[30,1,30,8],[32,1,32,8],[49,2,49,3],[49,6,49,8],[53,2,53,3],[36,1,36,8],[40,2,40,8],[42,2,42,4],[44,2,44,4],[46,2,46,3],[46,6,46,8],[47,2,47,3],[47,6,47,8],[48,6,48,8]]}
[null,null,null,"Add company logo"]
[null,null,null,null,null,null,null,null,null,null,null,null,null,"Version 24.2b (for incinerators) - 27/11/24"]
[]
[null,null,null,null,null,null,null,null,null,null,null,null,null,"Note that there is another version of this template available for co-incinerators"]
[]
[]
[]
[null,"Add photo"]
[]
[]
[]
[]
[null,null,null,null,null,null,null,null,null,null,null,null,null,"Notes:"]
[null,null,null,null,null,null,null,null,null,null,null,null,null,"This template may require adjustments by individual operators to meet specific reporting requirements as defined in the site Permit(s)"]
[]
[]
[]
[]
[]
[]
[]
[]
[]
[]
[]
[]
[]
[]
[null,"Annual Performance Report 2024"]
[]
[null,"Permit EPR/WP3438HZ"]
[]
[null,"Suffolk EfW"]
[]
[]
[]
[null,"SUEZ Recycling & Recovery UK Ltd"]
[]
[null,"Year:",2024]
[]
[null,"Address:","Lodge Lane, Great Blakenham, Suffolk, IP6 0JE"]
[]
[null,"Tel: ","01473 839149"]
[]
[null,"Email: ","john.flounders@suez.com"]
[]
[null,"Prepared by:","Richard Watkins",null,null,"Position:","EIR Manager"]
[null,null,"Robert Taylor",null,null,null,"Technical Plant Engineer"]
[null,null,"Jasmine Bressler",null,null,null,"EIR Advisor"]
[null,"Approved by:","John Flounders",null,null,"Position:","EfW Plant Manager"]
[]
[null,"Version:",1]
[]
[null,"Issue Date:","2025-01-27"]

{"sheet":"Facility Info","index":1,"n_rows":22,"n_cols":11,"rows_kept":22,"cut":false,"hidden":false,"merged":[[4,0,17,8],[21,0,53,8],[4,10,13,13],[21,10,30,13]]}
[{"$f":"+'Cover Page'!$B$29","v":"Annual Performance Report 2024"},null,null,null,{"$f":"+'Cover Page'!$B$33","v":"Suffolk EfW"}]
[]
["Plant Description and Design",null,null,null,null,null,null,null,null,null,"Notes:"]
[]
["This non-hazardous waste incinerator operates 24/7 across two furnace lines and can receive up to 295,000 tonnes of municipal waste and commercial/Industrial waste per annum. The heat produced by waste incineration is used to raise superheated steam which generates approximately 185,000 MWh/annum of electricity.\n\nActivities associated with the incineration are receipt and storage of municipal waste and commercial/industrial waste, production of steam and electricity, abatement of flue gas and handling of Incinerator Bottom Ash (IBA) and Air Pollution Control Residue (APCR).\n\nSuffolk EfW commissioning finished on 1st December 2014, when the plant was handed over from the EPC\ncontractor to SUEZ UK. Permit conditions have applied since this date. The data included in this report corresponds to the following period; 01 January 2024 to 31 December 2024.",null,null,null,null,null,null,null,null,null,"Include summary of plant design, design capacity, no. of combustion lines, electrical and heat capacity and any other general information that describes the facility, its location and purpose "]
[]
[]
[]
[]
[]
[]
[]
[]
[]
[]
[]
[]
[]
[]
["Summary of Operational Processes and Procedures"]
[]
["RECEPTION HALL & BUNKER\nIncoming waste is delivered to site by refuse collection trucks. It is then checked in, weighed and delivered\ninto the reception hall.  A large reception hall allows for refuse collection trucks to manoeuvre and tip waste safely. Air needed for combustion is drawn into the furnace from here so that negative pressure is maintained in order to avoid odour and dust escaping the building.  Waste vehicles reverse to a wheel stop and tip their loads into a large concrete bunker. Mixing of waste occurs as the cranes driver sorts the waste looking for unsuitable material to be removed, and to improve the homogeneity of the incinerator feedstock.\n\nCONTROL ROOM\nThe plant’s control room centralises the operation of all equipment, including the grab cranes used to mix and load waste into a hopper that feeds the furnace. All on-site functions are monitored automatically and manually.  Its systems verify in real time that equipment is functioning properly, continuously monitor the combustion gas, and maximise the efficiency of the entire EfW process.\n\nGRATE AND BOILER\nWaste is lifted into the charging hoppers by the crane. From here it falls into the furnace-charging chute and then is introduced onto the grate system by hydraulic feeders for incineration. An auxiliary burner can be used to help keeping the temperature above 850°C if required. The thermal energy released from the burning is used to convert water to super-heated steam along a boiler composed of 6 vertical passes. At high pressure, this steam drives a turbine to generate electricity.\n\nELECTRICITY GENERATION\nElectricity is generated at 11kv, with an electric production of 203,226 MWh during 2023 and exporting 184,527 MWh/annum to the national grid.\n\nINCINERATOR BOTTOM ASH (IBA)\nAsh left on the grate after incineration is carried by conveyor, after quenching, to the IBA processing facility.  Up to 65,000 tonne of IBA is processed on site by the removal of ferrous and non-ferrous metal, stabilised and separated into fraction sizes of IBA prior to the export from site of the processed IBA and metals for re-use.\n\nEMISSION CONTROL & AIR POLLUTION CONTROL RESIDUE (APCR)\nThe gases from the furnace are subject to a rigorous cleaning process involving urea as selective non-catalytic reduction (SNCR), lime and active carbon injections. This removes oxides of nitrogen, acidic gases, dioxins, and heavy metals from the gas stream.  The cleaned gas passes through fine-fabric bag filters to remove solid particles before it is emitted through the stack. The resultant APCR residue, or fly-ash, contains particles from the incineration process, lime used in the flue gas treatment, salts and carbon dust. It is stored in a sealed silo until it is tankered away for recycling.\n\nEMISSIONS MONITORING\nAs they pass through the stack, the residual flue gases from the process are continuously monitored before release. This data is relayed automatically to the control room.",null,null,null,null,null,null,null,null,null,"Include summary of key processes and procedures such as (but not limited to); waste reception, control rooms, grate, bed and boiler, energy & heat  generation, cooling systems, residue management, emission controls, health and safety systems, maintenance"]

{"sheet":"Contents","index":2,"n_rows":45,"n_cols":11,"rows_kept":45,"cut":false,"hidden":false,"merged":[[4,10,7,14],[8,1,8,6],[3,1,3,6],[4,1,4,6],[5,1,5,6],[6,1,6,6],[7,1,7,6],[21,1,21,6],[9,1,9,6],[10,1,10,6],[11,1,11,6],[13,1,13,6],[14,1,14,6],[15,1,15,6],[16,1,16,6],[17,1,17,6],[18,1,18,6],[19,1,19,6],[20,1,20,6],[12,1,12,6],[36,1,36,6],[22,1,22,6],[23,1,23,6],[24,1,24,6],[27,1,27,6],[28,1,28,6],[29,1,29,6],[30,1,30,6],[31,1,31,6],[32,1,32,6],[35,1,35,6],[44,0,47,9],[37,1,37,6],[38,1,38,6],[39,1,39,6],[40,1,40,6],[41,1,41,6],[42,1,42,6]]}
[{"$f":"+'Cover Page'!$B$29","v":"Annual Performance Report 2024"},null,null,null,{"$f":"+'Cover Page'!$B$33","v":"Suffolk EfW"}]
[]
["Contents",null,null,null,null,null,null,null,null,null,"Notes:"]
["Section","Subject",null,null,null,null,null,"Page ",null,null,"Section references and Page nos. to be inserted"]
[null,"Facility Information",null,null,null,null,null,null,null,null,"Sections and Subjects may require adjustment by individual operators to meet specific reporting requirements as defined in the sites Permit(s)"]
[null,"Operational Data"]
[null,"Operational Summary"]
[null,"Performance Form 1"]
[null,"Energy Form 1"]
[null,"Permit Compliance"]
[null,"Improvements"]
[null,"Public Liaison"]
[null,"Carbon dioxide and nitrous oxide emissions"]
[null,"Residue Quality "]
[null,"Emissions to Water"]
[null,"Emissions to Air (periodically monitored)"]
[null,"Emissions to Air (continuously monitored)"]
[null,"Hydrogen Chloride emissions"]
[null,"Sulphur Dioxide emissions"]
[null,"Oxides of Nitrogen emissions"]
[null,"Total Organic Carbon emissions"]
[null,"Particulate Matter emissions"]
[null,"Carbon Monoxide emissions"]
[null,"Ammonia emissions"]
[]
[]
["Version Control"]
["Section","Information",null,null,null,null,null,"Date"]
[1,"Original Report",null,null,null,null,null,"2025-01-27"]
[]
[]
[]
[]
[]
["Distribution"]
["Copy","Name, Role",null,null,null,null,null,"No."]
[1,"Katy Poulding - Environment Agency Regulatory Officer",null,null,null,null,null,1]
[2,"John Flounders - SUEZ Plant Manager",null,null,null,null,null,1]
[]
[]
[]
[]
[]
[]
["This report is required under the Industrial Emissions Directive’s Article 55(2) requirements on reporting and public information on waste incineration plants and co-incineration plants, which require the operator to produce an annual report on the functioning and monitoring of the plant and make it available to the public. "]

{"sheet":"Operational Data","index":3,"n_rows":65,"n_cols":10,"rows_kept":65,"cut":false,"hidden":false,"merged":[[5,9,7,9],[52,0,56,0],[33,1,38,1],[3,1,3,2],[7,1,19,1],[23,1,26,1],[28,1,29,1],[9,9,20,9],[21,9,25,9]]}
[{"$f":"+'Cover Page'!$B$29","v":"Annual Performance Report 2024"},null,null,null,{"$f":"+'Cover Page'!$B$33","v":"Suffolk EfW"}]
[]
["Operational Data"]
["Plant Size",295000,null,"tonnes pa",89,"MWth",28.5,"MWe",null,"Notes:"]
["No. of combustion lines",2,null,"No. of Turbines:",null,1,null,null,null,"* - RDF to include SRF "]
[null,null,null,null,null,null,null,null,null,"** - Combusted tonnage = tonnes delivered in period + (tonnes in bunker at start of period – tonnes in bunker at end of period), or equivalent calculation depending on plant type"]
["Waste types received","Unit","Q1","Q2","Q3","Q4","Year Total","%"]
["Household / Local Authority","tonnes",66736,55567,67194,65994,{"$f":"SUM(C8:F8)","v":255491},{"$f":"IF(G8>0,G8/$G$18,\"-\")","v":0.89149231649615479}]
["Commercial & Industrial ",null,5844,3900,6426,7885,{"$f":"SUM(C9:F9)","v":24055},8.3935824249445193E-2,null,"*** - CHP plants only"]
["Hazardous ",null," -   "," -   "," -   "," -   ",0,"-",null,"**** Availability Definition: 'the availability of a line is to be calculated by the number of hours the line reported Continuously Monitored emission levels to the Regulator through the calendar year divided by the total number of hours in that year. \n\nThe overall plant availability is calculated as the Mean of all lines in the plant. For clarity this includes periods of abnormal operation.'  \n\nRationale: The primary function of an Energy from Waste facility is the disposal of waste. It follows therefore that the availability of a plant is determined by the period of time a facility spends undertaking this activity."]
["Clinical",null,1616,689,1834,2903,7042,2.4571859254400044E-2]
["Waste wood (biomass) ",null,null,null,null,null,0,"-"]
["Refuse Derived Fuel * - H'hold/LA",null,null,null,null,null,{"$f":"SUM(C13:F13)","v":0},"-"]
["Refuse Derived Fuel *  - C&I",null,null,null,null,null,0,"-"]
["Other [Please specify]",null,null,null,null,null,0,"-"]
["Other [Please specify]",null,null,null,null,null,0,"-"]
["Other [Please specify]",null,null,null,null,null,0,"-"]
["Total waste received",null,{"$f":"SUM(C8:C17)","v":74196},{"$f":"SUM(D8:D17)","v":60156},{"$f":"SUM(E8:E17)","v":75454},{"$f":"SUM(F8:F17)","v":76782},286588]
["Rejected Waste ",null,null,null,null,null,{"$f":"SUM(C19:F19)","v":0},{"$f":"IF(G19>0,G19/$G$18,\"-\")","v":"-"}]
["Unprocessed waste transferred out",null,null,null,null,null,{"$f":"SUM(C20:F20)","v":0},{"$f":"IF(G20>0,G20/$G$18,\"-\")","v":"-"}]
["Total waste combusted **",null,{"$f":"C18+1490-632","v":75054},{"$f":"632+D18-2722","v":58066},{"$f":"2722+E18-3071","v":75105},{"$f":"3071+F18-2898","v":76955},{"$f":"SUM(C21:F21)","v":285180}]
[null,null,null,null,null,null,null,null,null,"Password for protected cells\nA password has been set to prevent accidental  editing of cells with formulae. \nIf you still need to make an edit for some reason then the password = 1234"]
["Energy Usage / Export","Unit","Q1","Q2","Q3","Q4","Year Total","KWh/te"]
["Power Generated","MWh",52348.113312000001,42619.390497600005,58525.995119999992,53911.873416000002,{"$f":"SUM(C24:F24)","v":207405.37234559999},{"$f":"IF(G24>0,G24*1000/$G$21,\"-\")","v":727.27881459288858}]
["Power Exported",null,46542.109027999992,37763.081116000001,52143.204514999998,47953.390906999994,{"$f":"SUM(C25:F25)","v":184401.78556599998},{"$f":"IF(G25>0,G25*1000/$G$21,\"-\")","v":646.61542031699275}]
["Power Used on site",null,5806.0042840000096,4856.3093816000037,6382.7906049999947,5958.4825090000086,{"$f":"SUM(C26:F26)","v":23003.586779600017},{"$f":"IF(G26>0,G26*1000/$G$21,\"-\")","v":80.663394275895982}]
["Power Imported",null,41.228999999999999,257.54700000000003,2.5443840000000004,31.375,332.69538399999999,{"$f":"IF(G27>0,G27*1000/$G$21,\"-\")","v":1.166615414825724}]
["Parasitic Load","%",{"$f":"IF(C24>0,1-C25/(C24+C27),\"-\")","v":0.11161112214727453},{"$f":"IF(D24>0,1-D25/(D24+D27),\"-\")","v":0.11926822856427766},{"$f":"IF(E24>0,1-E25/(E24+E27),\"-\")","v":0.10909780157018278},{"$f":"IF(F24>0,1-F25/(F24+F27),\"-\")","v":0.11103998526020109},{"$f":"IF(G24>0,1-G25/(G24+G27),\"-\")","v":0.11233512672302037}]
["Thermal Energy Produced ***","MWh",null,null,null,null,{"$f":"SUM(C29:F29)","v":0},{"$f":"IF(G29>0,G29*1000/$G$21,\"-\")","v":"-"}]
["Thermal Energy Exported ***",null,null,null,null,null,0,{"$f":"IF(G30>0,G30*1000/$G$21,\"-\")","v":"-"}]
["R1 value (if applicable)","R1"]
[]
["Waste Disposal & Recovery","Unit","Q1","Q2","Q3","Q4","Year Total","% inputs"]
["APC Residues - produced","tonnes",1889,1598,1848,1871,{"$f":"SUM(C34:F34)","v":7206},{"$f":"IF(G34>0,G34/$G$21,\"-\")","v":2.5268251630549125E-2}]
["IBA - produced",null,12687,10353,15927,13485,52452,{"$f":"IF(G35>0,G35/$G$21,\"-\")","v":0.18392594151062486}]
["Metals recycling",null,2821,2249,2508,2403,{"$f":"SUM(C36:F36)","v":9981},3.4998948032821373E-2]
["Other",null,0,0,0,0,{"$f":"SUM(C37:F37)","v":0},"-"]
["Other",null,0,0,0,0,0,"-"]
["Other",null,0,0,0,0,0,"-"]
[]
["Raw Material Usage","Unit","Q1","Q2","Q3","Q4","Year Total","kg or Ltr /te"]
["Mains Water","ltrs",10446000,9223000,8345000,8636830,{"$f":"SUM(C42:F42)","v":36650830},{"$f":"IF(G42>0,G42/$G$21,\"-\")","v":128.51823409776281}]
["Other Water","ltrs",null,null,null,null,0,{"$f":"IF(G43>0,G43/$G$21,\"-\")","v":"-"}]
["Ammonia","kgs",null,null,null,null,0,"-"]
["Urea","kgs",206223.18400799998,135997.50909599999,145336.74816000002,113270.58292799999,{"$f":"SUM(C45:F45)","v":600828.02419199992},2.1068378714916891]
["Activated Carbon","kgs",15235.80158996582,12173.520942687988,29738.714940185546,26523.081420898434,83671.118893737788,0.29339756958320284]
["Lime / hydrated lime","kgs",823093.09776000003,644935.76213759999,737312.89543680009,757528.03638240008,2962869.7917168001,10.389472584742268]
["Fuel oil","ltrs",64776.977221648805,84329.691558172795,17623,76800,243529.6687798216,0.8539507285918424]
["Gas","cuf",null,null,null,null,0]
["Other",null,null,null,null,null,0]
[]
["Summary ","Line/Unit","Q1","Q2","Q3","Q4","Year Total",null,"Hrs in year "]
["Availability of waste combustion by line, hrs ****",1,2020.171,1482.5286000000001,2207.6469999999999,2109.1180000000004,{"$f":"SUM(C53:F53)","v":7819.4646000000002},{"$f":"+G53/$I$53","v":0.89263294520547953},8760]
[null,2,2086.7809999999999,1711.8056999999999,2154.7020000000002,1963.1360000000002,7916.4247000000005,{"$f":"+G54/$I$53","v":0.90370144977168954}]
[null,null,null,null,null,null,0,0]
[null,null,null,null,null,null,0,0]
[null,null,null,null,null,null,{"$f":"SUM(C57:F57)","v":0},0]
["Overall Availability, mean avg. of all lines, hrs",null,null,null,null,null,{"$f":"AVERAGE(G53:G54)","v":7867.9446500000004},0.89816719748858453]
["Hours of turbine operations, hrs",1,2147,1820.8240000000001,2207.1329999999998,2185.17,8360.1270000000004,0.95435239726027399]
["Hours of turbine operations, hrs",2,null,null,null,null,0,0]
["Hours of heat / steam export",null,null,null,null,null,0,{"$f":"IF(B61>0,G60/I53,\"n/a\")","v":"n/a"}]
["Net Calorific Value of waste","MJ/kg",{"$f":"8811.38932280883/1000","v":8.8113893228088287},{"$f":"9136.84798674453/1000","v":9.1368479867445291},{"$f":"9783.93353753553/1000","v":9.7839335375355301},{"$f":"9299.07050054541/1000","v":9.29907050054541},{"$f":"AVERAGE(C62:F62)","v":9.2578103369085749}]
["Abnormal Events","qty.",3,"-",2,"-",5,{"$f":"IF(G63>0,\"yes\",\"no\")","v":"yes"}]
["Abnormal operation","hours",3.5,"-",2.5,"-",6,{"$f":"+(G64)/I53","v":6.8493150684931507E-4}]
["Permit Breaches","qty.",1,"-","-",1,2,{"$f":"IF(G65>0,\"yes\",\"no\")","v":"yes"}]

{"sheet":"Operational Summary","index":4,"n_rows":67,"n_cols":11,"rows_kept":67,"cut":false,"hidden":false,"merged":[[69,1,69,8],[54,10,64,13],[63,1,63,8],[64,1,64,8],[65,1,65,8],[66,1,66,8],[67,1,67,8],[60,1,60,8],[61,1,61,8],[62,1,62,8],[59,1,59,8],[55,1,55,8],[56,1,56,8],[57,1,57,8],[58,1,58,8],[68,1,68,8],[4,0,26,8],[30,0,51,8],[4,10,13,13],[30,10,39,13],[54,1,54,8],[53,1,53,8]]}
[{"$f":"+'Cover Page'!$B$29","v":"Annual Performance Report 2024"},null,null,null,{"$f":"+'Cover Page'!$B$33","v":"Suffolk EfW"}]
[]
["Summary of Plant Operations and Maintenance during the reporting year",null,null,null,null,null,null,null,null,null,"Notes:"]
[]
["2024 was a more disrupted year with several unplanned outages (see below) resulting in lower waste throughput than previous years.  However due to other improvements being implemented more power was produced.\n\nThe main outage included planned works to replace upper part of pendant evaporative heating surface in pass 2, refurbish baghouse hoppers, replace a significant amount of refractory in pass 1 and upgrade the materials in the turbine gearbox allowing additional power to be generated (see section on Improvements).\n\nWhen replacing refractory and testing of tubes below it was identified that significant material loss had occurred and multiple repairs were carried out with completed replacement being planned in 2025.\n\n",null,null,null,null,null,null,null,null,null,"Include summary of key operational and/or maintenance activity undertaken in the year, such as any major component upgrades and/or replacements "]
[]
[]
[]
[]
[]
[]
[]
[]
[]
[]
[]
[]
[]
[]
[]
[]
[]
[]
[]
[]
[]
[]
[]
["Summary of Residue Handling for the reporting year"]
[]
["All IBA produced by the EfW plant is transferred to the IBA recycling plant by conveyor, the IBA recycling plant is operated by Blue Phoenix. The IBA is non-hazardous, as confirmed by weekly analysis of the IBA,  and undergoes a mechanical separation process to remove all ferrous and non-ferrous metals leaving an IBA aggregate product. The metals are transferred to other operators for recycling and the IBA is applied to land in construction activities as a replacement for virgin (quarried) aggregate. This is in accordance with Environment Agency Regulatory Position Statement (RPS) 247 \"Using unbound IBAA in construction activities\".\n\nAir Pollution Control (APC) residues is the fly ash from the boiler mixed with dry sorbents such as carbon and lime in the flu gas treatment plant. The APC residue is hazardous and is therefore collected and disposed of to landfill\n\nSome additional residues may be produced during cleaning of the boiler during cleaning activities in planned maintenance outages. This boiler ash, often mixed with grit blast residues from the cleaning process, is disposed of to landfill.",null,null,null,null,null,null,null,null,null,"Include in here a summary of residue handling regimes and destinations "]
[]
[]
[]
[]
[]
[]
[]
[]
[]
[]
[]
[]
[]
[]
[]
[]
[]
[]
[]
[]
[]
[]
[{"$f":"+'Cover Page'!C39","v":2024},"Plant shut-downs"]
["Date","Reason for shut-down",null,null,null,null,null,null,null,null,"Provide a very brief reason for plant shut-down e.g. \"Shut-down prior to major outage\"; \"Emergency shut-down due to boiler tube leak\"\n\nThere is no need to include periods of hot-standby here (e.g. to clear feed chute hopper blockages).\n\nFor clinical waste incinerators which require regular shut-downs for boiler cleaning, there is no need to record these here. "]
["2024-02-07","L2 Emergency Shutdown for Tube Leak"]
["2024-02-07","L1 & TGU Emergency Shutdown for Loss of Vacuum"]
["2024-03-13","L1 Emergency Shutdown for Tube Leak"]
["2024-03-21","L1 Controlled Shutdown for Fly Ash System Blockage"]
["2024-04-01","L1 Planned Shutdown for Outage"]
["2024-04-12","L2 Planned Shutdown for Outage"]
["2024-04-29","L1 Controlled Shutdown for Fly Ash System Blockage"]
["2024-07-31","L1 Controlled Shutdown for ID Fan Motor Replacement"]
["2024-10-15","L1 Controlled Shutdown for Grate Repairs"]
["2024-11-19","L1 Controlled Shutdown for Grate Repairs"]
["2024-12-13","L2 Controlled Shutdown for Tube Leak"]
["2024-12-25","L1 & L2 Controlled Shutdown due to Waste Crane Fault"]

{"sheet":"Perf. Form 1","index":5,"n_rows":54,"n_cols":10,"rows_kept":54,"cut":false,"hidden":false,"merged":[[9,0,9,9],[10,0,10,1],[10,2,10,3],[10,4,10,5],[10,6,10,7],[10,8,10,9],[2,0,2,4],[2,6,2,8],[3,1,3,4],[5,3,5,4],[5,6,5,7],[8,0,8,1],[8,2,8,3],[8,4,8,5],[8,6,8,7],[8,8,8,9],[11,0,11,1],[11,2,11,3],[11,4,11,5],[11,6,11,7],[11,8,11,9],[12,0,12,1],[12,2,12,3],[12,4,12,5],[12,6,12,7],[12,8,12,9],[15,0,15,1],[15,2,15,3],[15,4,15,5],[15,6,15,7],[15,8,15,9],[16,0,16,9],[13,0,13,1],[13,2,13,3],[13,4,13,5],[13,6,13,7],[13,8,13,9],[14,0,14,3],[14,4,14,5],[14,6,14,7],[14,8,14,9],[17,0,17,1],[17,2,17,3],[17,4,17,5],[17,6,17,7],[17,8,17,9],[18,0,18,1],[18,2,18,3],[18,4,18,5],[18,6,18,7],[18,8,18,9],[19,0,19,1],[19,2,19,3],[19,4,19,5],[19,6,19,7],[19,8,19,9],[20,0,20,1],[20,2,20,3],[20,4,20,5],[20,6,20,7],[20,8,20,9],[21,0,21,1],[21,2,21,3],[21,4,21,5],[21,6,21,7],[21,8,21,9],[22,0,22,3],[22,4,22,5],[22,6,22,7],[22,8,22,9],[31,0,31,3],[31,7,31,8],[32,0,32,3],[32,4,32,5],[32,7,32,8],[33,0,33,3],[33,4,33,5],[33,7,33,8],[23,0,23,3],[23,4,23,5],[23,6,23,7],[23,8,23,9],[25,0,25,9],[26,0,28,9],[36,0,36,3],[36,4,36,5],[36,7,36,8],[37,0,37,3],[37,4,37,5],[37,7,37,8],[34,0,34,3],[34,4,34,5],[34,7,34,8],[35,0,35,3],[35,4,35,5],[35,7,35,8],[47,0,47,1],[49,0,49,9],[50,0,51,9],[38,0,38,9],[39,0,40,9],[43,0,43,1],[43,2,43,9],[45,0,45,1],[46,0,46,1]]}
[{"$f":"+'Cover Page'!C39","v":2024}," Annual Reporting Performance Form 1"]
[]
[{"$f":"+'Cover Page'!B31","v":"Permit EPR/WP3438HZ"},null,null,null,null,"Operator: ",{"$f":"+'Cover Page'!B37","v":"SUEZ Recycling & Recovery UK Ltd"}]
["Facility:",{"$f":"+'Cover Page'!B33:I33","v":"Suffolk EfW"},null,null,null,"Form:","Performance 1"]
[]
["Reporting  Period from: ",null,null,"2024-01-01",null,"to:","2024-12-31"]
[]
[{"$f":"+A1","v":2024},"Annual Reporting of Waste Disposal and Recovery"]
["Waste Description",null,"Disposal Route(s)",null,"Disposal Tonnes",null,"Recovery Tonnes",null,"% / tonne of waste incinerated"]
["1) Hazardous Wastes"]
["APC Residues",null,null,null,7206,null,null,null,{"$f":"IF((E11+G11)>0,(E11+G11)/'Operational Data'!$G$21, \"-\")","v":2.5268251630549125E-2}]
["IBA",null,null,null,null,null,null,null,{"$f":"IF((E12+G12)>0,(E12+G12)/'Operational Data'!$G$21, \"-\")","v":"-"}]
[null,null,null,null,null,null,null,null,{"$f":"IF((E13+G13)>0,(E13+G13)/'Operational Data'!$G$21, \"-\")","v":"-"}]
[null,null,null,null,null,null,null,null,{"$f":"IF((E14+G14)>0,(E14+G14)/'Operational Data'!$G$21, \"-\")","v":"-"}]
["Total Hazardous Waste",null,null,null,{"$f":"SUM(E11:F14)","v":7206},null,{"$f":"SUM(G11:H14)","v":0},null,{"$f":"IF((E15+G15)>0,(E15+G15)/'Operational Data'!$G$21, \"-\")","v":2.5268251630549125E-2}]
[]
["2) Non-Hazardous Wastes"]
["IBA",null,null,null,null,null,{"$f":"'Operational Data'!G35","v":52452},null,{"$f":"IF((E18+G18)>0,(E18+G18)/'Operational Data'!$G$21, \"-\")","v":0.18392594151062486}]
["Ferrous Metal",null,null,null,null,null,6564.2,null,{"$f":"IF((E19+G19)>0,(E19+G19)/'Operational Data'!$G$21, \"-\")","v":2.3017743179746124E-2}]
["Process Water",null,null,null,null,null,null,null,{"$f":"IF((E20+G20)>0,(E20+G20)/'Operational Data'!$G$21, \"-\")","v":"-"}]
["Non-Ferrous Metal",null,null,null,null,null,3416.8,null,{"$f":"IF((E21+G21)>0,(E21+G21)/'Operational Data'!$G$21, \"-\")","v":1.1981204853075252E-2}]
[null,null,null,null,null,null,null,null,{"$f":"IF((E22+G22)>0,(E22+G22)/'Operational Data'!$G$21, \"-\")","v":"-"}]
["Total Non-Hazardous Waste",null,null,null,{"$f":"SUM(E18:F22)","v":0},null,{"$f":"SUM(G18:H22)","v":62433},null,{"$f":"IF((E23+G23)>0,(E23+G23)/'Operational Data'!$G$21, \"-\")","v":0.21892488954344624}]
["TOTAL WASTE",null,null,null,{"$f":"+E23+E15","v":7206},null,{"$f":"+G23+G15","v":62433},null,{"$f":"IF((E24+G24)>0,(E24+G24)/'Operational Data'!$G$21, \"-\")","v":0.24419314117399538}]
[]
["Operator’s comments :"]
[]
[]
[]
[]
[{"$f":"+A1","v":2024},"Annual Reporting of Water and Other Raw Material Usage"]
["Raw Material",null,null,null,"Usage",null,"Unit","Specific Usage",null,"Unit"]
["Mains Water",null,null,null,{"$f":"+'Operational Data'!G42/1000","v":36650.83},null,"m3",{"$f":"IF(E33>0,E33/'Operational Data'!$G$21,\"-\")","v":0.12851823409776283},null,"m3/te"]
["Total Water",null,null,null,{"$f":"+'Operational Data'!G43+'Operational Data'!G42/1000","v":36650.83},null,"m3",{"$f":"IF(E34>0,E34/'Operational Data'!$G$21,\"-\")","v":0.12851823409776283},null,"m3/te"]
["Urea / Ammonia",null,null,null,{"$f":"+'Operational Data'!G45","v":600828.02419199992},null,"kg",{"$f":"IF(E35>0,E35/'Operational Data'!$G$21,\"-\")","v":2.1068378714916891},null,"kg/te"]
["Activated Carbon",null,null,null,{"$f":"+'Operational Data'!G46","v":83671.118893737788},null,"kg",{"$f":"IF(E36>0,E36/'Operational Data'!$G$21,\"-\")","v":0.29339756958320284},null,"kg/te"]
["Lime / hydrated lime / Sodium Bicarb.",null,null,null,{"$f":"+'Operational Data'!G47","v":2962869.7917168001},null,"kg",{"$f":"IF(E37>0,E37/'Operational Data'!$G$21,\"-\")","v":10.389472584742268},null,"kg/te"]
[]
["Operator’s comments :"]
[]
[]
[]
[{"$f":"+A31","v":2024},"Annual Reporting of other performance indicators "]
["Parameter",null,"Results by Line"]
[null,null,"A1","A2","A3","A4","A5",null,"Turbine 1","Turbine 2"]
["Operating hours for the year, hours",null,7819,7916]
["Number of periods of abnormal operation, qty.",null,3,2]
["Cumulative hours of abnormal operation for this year, hours",null,3.5,2.5]
[]
["Operator’s comments :"]
[]
[]
[]
["Signed: ",null,null,null,null,null,"Date:"]

{"sheet":"Energy Form 1","index":6,"n_rows":29,"n_cols":7,"rows_kept":29,"cut":false,"hidden":false,"merged":[[2,6,2,8],[4,1,4,4],[6,3,6,4],[6,6,6,7],[8,0,8,2],[8,3,8,4],[8,6,8,8],[9,0,9,2],[9,3,9,4],[9,6,9,8],[10,0,10,2],[10,3,10,4],[10,6,10,8],[11,0,11,2],[11,3,11,4],[11,6,11,8],[12,0,12,2],[12,3,12,4],[12,6,12,8],[13,0,13,2],[13,3,13,4],[13,6,13,8],[14,0,14,2],[14,3,14,4],[14,6,14,8],[15,0,15,2],[15,3,15,4],[15,6,15,8],[17,0,17,8],[18,0,24,8]]}
[{"$f":"+'Cover Page'!C39","v":2024}," Annual Reporting of Energy Usage/Export"]
[]
[{"$f":"+'Cover Page'!B31","v":"Permit EPR/WP3438HZ"},null,null,null,null,"Operator: ",{"$f":"+'Cover Page'!B37","v":"SUEZ Recycling & Recovery UK Ltd"}]
[]
["Facility:",{"$f":"+'Cover Page'!B33:I33","v":"Suffolk EfW"},null,null,null,"Form:","Energy 1"]
[]
["Reporting  Period from: ",null,null,{"$f":"+'Perf. Form 1'!D6:E6","v":"2024-01-01"},null,"to:",{"$f":"+'Perf. Form 1'!G6:H6","v":"2024-12-31"}]
[]
["Energy Source",null,null,"Energy Usage",null,"Unit","Specific Usage (KWh/tonne incinerated"]
["Electricity Produced",null,null,{"$f":"+'Operational Data'!G24","v":207405.37234559999},null,"MWh",{"$f":"+'Operational Data'!H24","v":727.27881459288858}]
["Electricity Imported   ",null,null,{"$f":"+'Operational Data'!G27","v":332.69538399999999},null,"MWh",{"$f":"+'Operational Data'!H27","v":1.166615414825724}]
["Electricity Exported",null,null,{"$f":"+'Operational Data'!G25","v":184401.78556599998},null,"MWh",{"$f":"+'Operational Data'!H25","v":646.61542031699275}]
["Gas Oil",null,null,{"$f":"'Operational Data'!G48*0.85/1000","v":207.00021846284838},null,"tonnes",{"$f":"(D13*42800*1000*(1/3600))/'Operational Data'!G21","v":8.6296465294920068}]
["Steam/hot water exported",null,null,{"$f":"+'Operational Data'!G30","v":0},null,"GWh",{"$f":"+'Operational Data'!H30","v":"-"}]
[]
[]
[]
["Operator’s comments :"]
["Density value of 845 kg.m-3 used to convert gas oil litres to tonnes.\nNet Calorific Value (NCV) of 42,800 kJ.kg-1 used for gas oil"]
[]
[]
[]
[]
[]
[]
[]
[]
[]
["Signed: ",null,null,null,null,null,"Date:"]

{"sheet":"Permit Compliance","index":7,"n_rows":30,"n_cols":12,"rows_kept":30,"cut":false,"hidden":false,"merged":[[35,4,35,8],[9,0,9,1],[9,2,9,4],[9,5,9,8],[10,0,10,1],[10,2,10,4],[10,5,10,8],[11,0,11,1],[11,2,11,4],[11,5,11,8],[12,0,12,1],[12,2,12,4],[12,5,12,8],[13,0,13,1],[13,2,13,4],[13,5,13,8],[7,0,7,1],[7,2,7,8],[8,0,8,1],[8,2,8,4],[8,5,8,8],[14,5,14,8],[15,0,15,1],[16,2,16,4],[16,5,16,8],[15,2,15,4],[15,5,15,8],[16,0,16,1],[34,1,34,3],[34,4,34,6],[34,7,34,9],[31,1,31,3],[31,4,31,6],[31,7,31,9],[32,1,32,3],[32,4,32,6],[32,7,32,9],[8,11,20,11],[28,0,28,10],[18,0,18,10],[33,1,33,3],[33,4,33,6],[33,7,33,9],[29,1,29,3],[29,4,29,6],[29,7,29,9],[30,1,30,3],[30,4,30,6],[30,7,30,9],[22,1,22,2],[23,1,23,2],[14,0,14,1],[14,2,14,4],[24,1,24,2],[25,1,25,2],[26,0,26,8],[19,7,19,8],[19,1,19,2],[19,3,19,5],[21,3,21,5],[22,3,22,5],[23,3,23,5],[24,3,24,5],[25,3,25,5],[21,1,21,2]]}
[{"$f":"+'Cover Page'!$B$29","v":"Annual Performance Report 2024"},null,null,null,{"$f":"+'Cover Page'!$B$33","v":"Suffolk EfW"}]
[]
["Summary of Permit Compliance"]
[]
["Compliance with permit limits for continuously monitored pollutants"]
[]
["The plant met its emission limits as shown in the table below:"]
["Substance",null,"Percentage time compliant during operationNote 1",null,null,null,null,null,null,null,null,"Notes:"]
[null,null,"Half-hourly limit",null,null,"Daily limit",null,null,null,null,null,"Note 1: Please report to 2 decimal places, i.e. xx.xx%\n\nNote 2: Please enter into this table any permit non-compliances that the EA has given a CCS score for. Please also enter any other non-compliances which you have notified to the EA (e.g. ELV exceedances) but which have not yet been assessed by the EA. There is no need to enter any notifications which were subsequently assessed by the EA not to be permit breaches.  \n\nNote 3: Please enter information here (rather than just referencing the notifications that were sent to the EA) including where relevant the incineration line reference, pollutant and value of the measured result for any ELV exceedances.   \n\n"]
["Particulates",null,1,null,null,1]
["Oxides of nitrogen",null,1,null,null,1]
["Sulphur dioxide",null,0.99990000000000001,null,null,1]
["Carbon monoxide",null,"100.00 % or \n100.00% 95% of 10-min averages",null,null,1]
["Total organic carbon",null,0.99990000000000001,null,null,1]
["Hydrogen chloride",null,1,null,null,1]
["Hydrogen fluoride",null,1,null,null,1]
[null,null,1,null,null,1]
[]
["Summary of non-compliances under the permit Note 2"]
["Date","Summary of non-compliance Note 3",null,"Reason ",null,null,"Measures taken to prevent reoccurrence","CCS score if applicable*"]
[null,null,null,null,null,null,null,"Impact","Root cause"]
["2024-03-20","Breach - SO2 half hourly average exceedance on Line 1",null,"High SO2 in waste. Raw gas analyser not available.",null,null,"Mixing protocols to be refreshed and new raw gas analyser to be installed.","CCS4","N/A"]
["2024-10-31","Breach - TOC exceedance on Line 1 ",null,"Waste hopper blockage leading to a period of poor combustion ",null,null,"Toolbox talk for operations teams relating to hopper blockages and waste feeding. Review of appropriate actions when a blockage occurs."]
[]
[]
[]
["*If the Environment Agency (EA) has given a Compliance Classification Scheme (CCS) score due to a permit non-compliance it should be entered here (CCS4 = No impact; CCS3 = Minor impact; CCS2 = Significant impact; CCS1 = Major impact). If the EA has not yet assessed a non-compliance which you have notified to them, these columns should be left blank. "]
[]
["Summary of any complaints received and actions to taken to resolve them."]
["Date","Summary of complaint [including Line/Reference]",null,null,"Reason (including whether substantiated by the operator or the EA)",null,null,"Measures taken to prevent reoccurrence"]

{"sheet":"Improvements","index":8,"n_rows":38,"n_cols":5,"rows_kept":38,"cut":false,"hidden":false,"merged":[[37,0,37,8],[38,0,47,8],[4,0,4,8],[5,0,13,8],[15,0,15,8],[16,0,24,8],[26,0,26,8],[27,0,35,8]]}
[{"$f":"+'Cover Page'!$B$29","v":"Annual Performance Report 2024"},null,null,null,{"$f":"+'Cover Page'!$B$33","v":"Suffolk EfW"}]
[]
["Summary of Plant Improvements"]
[]
["Summary of any efficiency improvements that have been completed within the year."]
["In Spring 2024 outage the turbine gearbox was upgraded to allow additional power to be generated.  This has improved the efficiency of the plant as under almost all operating conditions no steam is bypassing the turbine and all of the energy in the waste is being used to generate power."]
[]
[]
[]
[]
[]
[]
[]
[]
[]
["Summary of any permit improvement conditions that have been completed within the year and the resulting environmental benefits."]
["IC1 report submitted 17/01/2024 regarding the NOx emission trials\nIC1: \"The operator shall perform a study to determine the extent to which the operation of the current systems in place at the plant to minimise NOx emissions can be further optimised such that emissions are reduced as far as possible below 180 mg/Nm3 as a daily average, without significantly increasing emissions of other pollutants or having a significant negative effect on plant operation, reliability or bottom ash quality.\"\n\nIC4 submitted 26/11/2024 and resubmitted with minor amendments 09/12/2024\nIC4 \"The operator shall submit a Dust Management Plan (DMP) to the Environment Agency for approval.\""]
[]
[]
[]
[]
[]
[]
[]
[]
[]
["Summary of any changes to the plant or operating techniques which required a variation to the permit and a summary of the resulting environmental impact."]
["Not applicable"]
[]
[]
[]
[]
[]
[]
[]
[]
[]
["Summary of any other improvements made to the plant or planned to be made and a summary of the resulting environmental benefits."]

{"sheet":"Public Liasion","index":9,"n_rows":29,"n_cols":5,"rows_kept":29,"cut":false,"hidden":false,"merged":[[16,0,16,1],[16,2,16,8],[5,0,5,1],[5,2,5,8],[6,0,7,1],[6,2,7,8],[8,0,9,1],[8,2,9,8],[10,0,11,1],[10,2,11,8],[12,0,13,1],[12,2,13,8],[15,0,15,8],[17,0,18,1],[17,2,18,8],[19,0,20,1],[19,2,20,8],[21,0,22,1],[21,2,22,8],[23,0,24,1],[23,2,24,8],[25,0,26,1],[25,2,26,8],[28,0,28,8]]}
[{"$f":"+'Cover Page'!$B$29","v":"Annual Performance Report 2024"},null,null,null,{"$f":"+'Cover Page'!$B$33","v":"Suffolk EfW"}]
[]
["Details of Public & Stakeholder Liaison"]
[]
["Summary of events held during the reporting year."]
["Date",null,"Description"]
["2024-05-01",null,"Suffolk Show.  The Suffolk show is a 2-day event where SUEZ join the wider Suffolk Waste Partnership to engage with members of the public about recycling and what happens to their black bin and other non-recyclable waste."]
[]
["Throughout the year",null,"Tours: - 42 adult tours/open day tours and 42 school/community group tours totalling 1,016 visitors.\nOutreach projects: - 20 events involving 617 people.\n(10 children's outreach events, 3 careers events, 3 environmental events for mixed groups, 4 outreach talks for adults)"]
[]
["2024-09-01",null,"Heritage Open Days - an annual, national event in which we host tours on a Saturday in September. \n2 tours attended by 35 visitors"]
[]
[]
[]
[]
["List of events planned for next year"]
["Date",null,"Description"]
[" May 2025",null,"Suffolk Show"]
[]
["Summer 2025 (date to be confirmed)",null,"Site’s 10th anniversary celebrations and official opening of refurbished visitor centre"]
[]
["Throughout the year",null,"Adult tours and school/community group tours"]
[]
["Throughout the year",null,"Outreach "]
[]
["Throughout the year",null,"Careers events"]
[]
[]
["If you wish to be involved in the public liaison programme, please contact jennifer.steytler@suez.com / Siobhan.o'dell@suez.com"]

{"sheet":"CO2 N2O","index":10,"n_rows":25,"n_cols":6,"rows_kept":25,"cut":false,"hidden":false,"merged":[[22,2,22,3],[25,1,25,3],[16,2,16,3],[4,0,4,3],[9,0,9,3],[17,0,17,3],[13,0,13,3],[12,0,12,1],[8,2,8,3],[11,2,11,3],[19,2,19,3]]}
[{"$f":"+'Cover Page'!$B$29","v":"Annual Performance Report 2024"},null,{"$f":"+'Cover Page'!$B$33","v":"Suffolk EfW"}]
[]
["Carbon dioxide emissions and biogenic content of waste inputs",null,null,null,null,"Notes:"]
[]
["Carbon dioxide emissions (all types of plant)"]
[null,"Annual mass of carbon dioxide released","tonnes ",280626.94871272624]
[null,"Annual mass of carbon dioxide released per tonne of waste burned","t CO2 / t waste ",{"$f":"D6/'Operational Data'!G21","v":0.98403446494398705}]
[null,"Annual mass of carbon dioxide released per MWh of energy exported","t CO2 / MWh export ",{"$f":"D6/'Operational Data'!G25","v":1.5218233806759205}]
[null,"Description of how annual carbon dioxide mass emission has been calculated. \nSee Note 1","CEMs CO2, O2 and Flow Measurements",null,null,"Note 1: All permits require operators to continuously monitor CO2 to EN14181 and flow to BS EN 16911-2 (unless otherwise agreed in writing). Operators must therefore use the results from these instruments to calculate their annual CO2 emissions. Where an operator does not have a flow meter calibrated to BS EN 16911-2, the averaged flow measurement from that year's periodic monitoring can be used instead. If the plant does not have calibrated CO2 CEMS, a suitably justified emissions factor can be used."]
["Nitrous oxide emissions (only plants which use ammonia or urea to abate NOx emissions)"]
[null,"Annual mass emissions of nitrous oxide","tonnes N2O",8.5190000000000001]
[null,"Description of how annual nitrous oxide mass emission has been calculated\nSee Note 2","CEMs CO2, O2 and Flow Measurements",null,null,"Note 2: All permits require operators to continuously monitor N2O to EN14181 and flow to BS EN 16911-2, unless otherwise agreed in writing. Operators must therefore use the results from these instruments to calculate their annual N2O emissions. Where an operator does not have a flow meter calibrated to BS EN 16911-2, the averaged flow measurement from periodic monitoring can be used instead. If the plant does not have calibrated N2O CEMS, data from periodic monitoring or a suitably justified emissions factor can be used instead."]
["Total annual carbon dioxide + nitrous oxide emissions. \nSee Note 3. ",null,"tonnes CO2e",{"$f":"D11*265+D6","v":282884.48371272621},null,"Note 3: Total annual carbon dioxide and nitrous oxide emissions reported as carbon dioxide equivalent where 1 tonne nitrous oxide is equivalent to 265 tonnes carbon dioxide."]
["Biogenic CO2 emissions (See Note 4)",null,null,null,null,"Note 4: Only plants combusting residual municipal waste, refuse derived fuel or solid recovered fuel need complete this section. "]
[null,"Percentage of total carbon dioxide emissions arising from biogenic waste","%",0.54169999999999996]
[null,"No. of measurements undertaken","Number",1]
[null,"Description of how percentage biogenic carbon dioxide emissions have been measured or calculated.\nSee Note 5","Based on annual waste sampling and analysis to determine biogenic fraction",null,null,"Note 5: The results from C14 sampling should be used if this is carried out at the plant (either via an installed sampler or from spot samples).  \nOtherwise, as an approximation (and in lieu of any more accurate metrics which may be developed in future), the measured or estimated biogenic fraction by net calorific value (see Note 6) can be assumed to be the same as the biogenic CO2 fraction of the total CO2 emissions from the plant. "]
["Biogenic fraction of waste feedstock (See Note 4)"]
[null,"Yearly average biogenic percentage of the waste by net calorific value (NCV)","%",0.54169999999999996]
[null,"Description of how biogenic percentage (by NCV) has been calculated or estimated. \nSee Note 6","Based on annual waste sampling and analysis to determine biogenic fraction",null,null,"Note 6: If C14 sampling is carried out at the plant, the methodology set out in the embedded document entitled \"Renewable Energy Association Energy Content of Fuels - Description of Method\" embedded below can be used to calculate the biogenic percentage by net calorific value. Otherwise, data from waste sampling or BIOMA software can be used; or if none of these are available, an estimated figure with justification or a figure assumed on the basis of up-to-date industry data can be used. "]
[null,"Yearly average biogenic percentage of the waste by mass","%",0.54169999999999996]
[null,"If waste sampling undertaken, no. of samples used to ascertain average biogenic percentages above","Number",1]
[null,"Description of how biogenic percentage (by mass) has been calculated or estimated. \nSee Note 7","Based on annual waste sampling and analysis to determine biogenic fraction",null,null,"Note 7: Where available, data from waste sampling should be used; otherwise, an estimated figure with justification can be used, or a figure assumed on the basis of up-to-date industry data. "]
[]
[null,"Comments:"]

{"sheet":"Residue Quality ","index":11,"n_rows":37,"n_cols":6,"rows_kept":37,"cut":false,"hidden":false,"merged":[[16,0,17,1],[16,2,17,6],[18,0,19,1],[18,2,19,6],[12,0,12,6],[13,0,13,1],[13,2,13,6],[5,0,6,6],[7,0,8,6],[9,0,10,6],[14,0,15,1],[14,2,15,6],[20,0,21,1],[20,2,21,6],[22,0,23,1],[22,2,23,6],[31,3,31,4],[27,2,28,2],[28,3,28,4],[28,5,28,6],[27,3,27,6],[26,0,26,6],[36,0,41,6],[32,3,32,4],[35,0,35,6],[27,0,28,1],[29,0,29,1],[30,0,30,1],[31,0,31,1],[32,0,32,1],[29,3,29,4],[30,3,30,4],[29,5,29,6],[30,5,30,6],[31,5,31,6],[32,5,32,6],[33,0,33,6]]}
[{"$f":"+'Cover Page'!$B$29","v":"Annual Performance Report 2024"},null,null,null,{"$f":"+'Cover Page'!$B$33","v":"Suffolk EfW"}]
[]
["Residue Quality Monitoring Requirements"]
[]
["Summary of monitoring undertaken and compliance"]
["Routine samples for quarterly IBA analysis were taken on the 26/01/2024, 09/04/2024, 13/08/2024 and 16/10/2024"]
[]
["There were no issues identified by the analysis and all results for TOC were below the permit limit. LOI analysis is not required as TOC analysis is provided."]
[]
[]
[]
[]
["Commentary on any specific events"]
["Date & Event",null,"Description"]
[]
[]
[]
[]
[]
[]
[]
[]
[]
[]
[]
[]
["Residue Quality Monitoring Results"]
["Parameter (unit) ",null,"Limit*","Normal Operation "]
[null,null,null,"Bottom ash  ",null,"APC Residues"]
["Loss on Ignition (average %)",null,"<5%","N/A"]
["Total Organic Carbon (average %)",null,"<3%",{"$f":"AVERAGE(1.81, 1.87, 0.89, 1.3)","v":1.4675}]
["No. of Assessments Undertaken",null,"---",4,null,4]
["No. of Hazardous Results",null,"---",0]
["* The permit will specify a limit of either 5% loss on ignition or 3% total organic carbon. If both are measured anyway, please enter the results here, even where the limit does not apply. "]
[]
["Comments :"]
["26/01/2024 TOC = 1.81\n09/04/2024 TOC = 1.87\n13/08/2024 TOC = 0.89\n16/10/2024 TOC = 1.3\nAverage TOC = 1.47 %"]

{"sheet":"Water","index":12,"n_rows":24,"n_cols":9,"rows_kept":24,"cut":false,"hidden":false,"merged":[[5,0,6,8],[7,0,8,8],[9,0,10,8],[12,0,12,8],[13,0,13,1],[13,2,13,8],[21,0,21,8],[22,0,22,2],[22,3,22,4],[14,0,15,1],[14,2,15,8],[16,0,17,1],[16,2,17,8],[18,0,19,1],[18,2,19,8],[23,0,23,2],[23,3,23,4],[24,0,24,2],[24,3,24,4],[25,0,25,2],[25,3,25,4],[29,0,29,2],[29,3,29,4],[26,0,26,2],[26,3,26,4],[27,0,27,2],[27,3,27,4],[28,0,28,2],[28,3,28,4]]}
[{"$f":"+'Cover Page'!$B$29","v":"Annual Performance Report 2024"},null,null,null,{"$f":"+'Cover Page'!$B$33","v":"Suffolk EfW"}]
[]
["Emissions to Water"]
[]
["Summary of monitoring undertaken and compliance"]
["There are no discharges to water regulated by the permit. The discharge point S1 has a volume limit of 24m3 per day as detailed in table S3.4. Compliance with the discharge volume limit is reported to the Environment Agency on a quarterly basis in line with permit requirements."]
[]
[]
[]
[]
[]
[]
["Commentary on any specific events"]
["Date & Event",null,"Description"]
["Discharge breaches: 11/12/2024, 13/12/2024, 28/12/2024, 31/12/2024",null,"11/12/2024 - 27.1 m3\n13/12/2024 - 24.1 m3\n28/12/2024 - 24.1 m3\n31/12/2024 - 26.0 m3"]
[]
[]
[]
[]
[]
[]
["Emissions to Water / Sewer"]
["Parameter",null,null,"Monitoring Frequency",null,"Limit","Target","Max.","Average"]
["Water Volume (m3/day) to Sewer",null,null,"Continuous",null,"24m3/day",0,27.1,4.8]

{"sheet":"Air (periodic)","index":13,"n_rows":40,"n_cols":18,"rows_kept":40,"cut":false,"hidden":false,"merged":[[5,10,8,13],[9,10,11,13],[8,0,8,9],[5,0,6,9],[11,0,11,1],[12,0,12,1],[11,3,11,4],[12,3,12,4],[9,0,10,1],[9,5,9,9],[9,3,10,4],[9,2,10,2],[16,0,16,1],[17,0,17,1],[18,0,18,1],[13,0,13,1],[14,0,14,1],[15,0,15,1],[39,0,40,9],[25,0,25,1],[26,0,26,1],[22,0,22,1],[23,0,23,1],[37,0,37,1],[27,0,27,1],[28,0,28,1],[29,0,29,1],[30,0,30,1],[31,0,31,1],[32,0,32,1],[37,3,37,4],[29,3,29,4],[30,3,30,4],[36,3,36,4],[38,0,38,9],[19,0,19,1],[20,0,20,1],[21,0,21,1],[34,3,34,4],[35,3,35,4],[33,0,33,1],[34,0,34,1],[35,0,35,1],[36,0,36,1],[24,0,24,1],[32,3,32,4],[27,3,27,4],[33,3,33,4],[19,3,19,4],[20,3,20,4],[21,3,21,4],[22,3,22,4],[23,3,23,4],[24,3,24,4],[31,3,31,4],[25,3,25,4],[26,3,26,4],[28,3,28,4],[13,10,14,12],[15,10,16,10],[15,11,16,11],[15,12,16,12],[18,3,18,4],[13,3,13,4],[14,3,14,4],[15,3,15,4],[16,3,16,4],[17,3,17,4]]}
[{"$f":"+'Cover Page'!$B$29","v":"Annual Performance Report 2024"},null,null,null,{"$f":"+'Cover Page'!$B$33","v":"Suffolk EfW"}]
[]
["Emissions to Air (periodically monitored)"]
[]
["Summary of monitoring undertaken, standards used and compliance",null,null,null,null,null,null,null,null,null,"Notes:"]
["The compliance monitoring visists were carried out during March and September 2024. There were no non-compliances identified during either visit. ",null,null,null,null,null,null,null,null,null,"Template may require adjustment for any bespoke monitoring requirements of permit - please also check that all default ELV values, reference periods and the stated oxygen reference value match those for your plant, and edit if necessary!",null,null,null,null,null,null," "]
[]
[]
["Results of emissions to air that are periodically monitored - oxygen reference 11% "]
["Substance",null,"Ref. Period","Emission Limit Value",null,"Average",null,null,null,null,"User to add additional tables as necessary, depending on whether quarterly or bi-annual reporting is required for the compliance year"]
[null,null,null,null,null,"A1","A2","A3","A4","A5"]
["Hydrogen fluoride",null,"1 hr","1 mg/m3",null,{"$f":"AVERAGE(0.36, 0.04)","v":0.19999999999999998},{"$f":"AVERAGE(0.05, 0.08)","v":6.5000000000000002E-2}]
["Cd and Tl and their compounds",null,"0.5-8hrs","0.02 mg/m3",null,{"$f":"AVERAGE(0.0014, 0.0022)","v":1.8E-3},{"$f":"AVERAGE(0.0015, 0.002)","v":1.75E-3}]
["Hg and its compounds",null,"0.5-8hrs","0.02 mg/m3",null,{"$f":"AVERAGE(0.0015, 0.0012)","v":1.3500000000000001E-3},{"$f":"AVERAGE(0.003, 0.0009)","v":1.9499999999999999E-3}]
["Sb, As, Pb, Cr, Co, Cu, Mn, Ni, V and their compounds",null,"0.5-8hrs","0.3 mg/m3",null,{"$f":"AVERAGE(0.05, 0.042)","v":4.5999999999999999E-2},{"$f":"AVERAGE(0.028, 0.07)","v":4.9000000000000002E-2}]
["Dioxins & Furans (I-TEQ)",null,"6-8hrs","0.06 ng/m3",null,{"$f":"AVERAGE(0.0084, 0.0014)","v":4.8999999999999998E-3},{"$f":"AVERAGE(0.041, 0.0017)","v":2.1350000000000001E-2}]
["PCBs (WHO-TEQ Humans / Mammals)",null,"6-8hrs","None set ng/m3",null,{"$f":"AVERAGE(0.000237, 0.002)","v":1.1184999999999999E-3},{"$f":"AVERAGE(0.003, 0.000039)","v":1.5195E-3}]
["PCBs (WHO-TEQ Fish)",null,"6-8hrs","None set ng/m3",null,{"$f":"AVERAGE(0.00012, 0.00013)","v":1.25E-4},{"$f":"AVERAGE(0.0001, 0.000004)","v":5.2000000000000004E-5}]
["PCBs (WHO-TEQ Birds)",null,"6-8hrs","None set ng/m3",null,{"$f":"AVERAGE(0.000801, 0.0088)","v":4.8005000000000001E-3},{"$f":"AVERAGE(0.0012, 0.006)","v":3.5999999999999999E-3}]
["Dioxins & Furans (WHO-TEQ Humans / Mammals)",null,"6-8hrs","None set ng/m3",null,{"$f":"AVERAGE(0.0012, 0.0066)","v":3.8999999999999998E-3},{"$f":"AVERAGE(0.0427, 0.0016)","v":2.215E-2}]
["Dioxins & Furans (WHO-TEQ Fish)",null,"6-8hrs","None set ng/m3",null,{"$f":"AVERAGE(0.008, 0.0012)","v":4.5999999999999999E-3},{"$f":"AVERAGE(0.0019, 0.0484)","v":2.5149999999999999E-2}]
["Dioxins & Furans (WHO-TEQ Birds)",null,"6-8hrs","None set ng/m3",null,{"$f":"AVERAGE(0.0034, 0.02)","v":1.17E-2},{"$f":"AVERAGE(0.0761, 0.0029)","v":3.95E-2}]
["Anthanthrene",null,"6-8hrs","None set µg/m3",null,1.9E-3,2E-3]
["Benzo(a)anthracene",null,"6-8hrs","None set µg/m3",null,3.5000000000000001E-3,2E-3]
["Benzo(a)pyrene",null,"6-8hrs","None set µg/m3",null,2.3999999999999998E-3,2E-3]
["Benzo(b)fluoranthene",null,"6-8hrs","None set µg/m3",null,2.7000000000000001E-3,2E-3]
["Benzo(b)naptho(2,1-d) thiophene",null,"6-8hrs","None set µg/m3",null,1.9E-3,2E-3]
["Benzo(c)phenanthrene",null,"6-8hrs","None set µg/m3",null,1.9E-3,2E-3]
["Benzo(ghi)perylene",null,"6-8hrs","None set µg/m3",null,2.7000000000000001E-3,2E-3]
["Benzo(k)fluoranthene",null,"6-8hrs","None set µg/m3",null,1.9E-3,2E-3]
["Cholanthrene",null,"6-8hrs","None set µg/m3",null,1.9E-3,2E-3]
["Chrysene",null,"6-8hrs","None set µg/m3",null,3.5999999999999999E-3,2E-3]
["Cyclopenta(cd)pyrene",null,"6-8hrs","None set µg/m3",null,1.9E-3,2E-3]
["Dibenzo(ai)pyrene",null,"6-8hrs","None set µg/m3",null,1.9E-3,2E-3]
["Dibenzo(ah)anthracene",null,"6-8hrs","None set µg/m3",null,1.9E-3,2E-3]
["Fluoranthene",null,"6-8hrs","None set µg/m3",null,4.5100000000000001E-2,0.02]
["Indeno(123-cd) pyrene",null,"6-8hrs","None set µg/m3",null,1.9E-3,2E-3]
["Naphthalene",null,"6-8hrs","None set µg/m3",null,1.1100000000000001,0.37]
["Comments :"]
["The average result is calculated from the reproted values for the H1 and H2 compliance monitoring campaigns. Where results are reported at the laboratory limit of detection the < qualifier is removed for the calculation of the average emission as a conservative measure. Where the average has been calaculated in this way the reported value is highlighted bold. "]

{"sheet":"Air (CEMS)","index":14,"n_rows":28,"n_cols":14,"rows_kept":28,"cut":false,"hidden":false,"merged":[[12,13,13,15],[14,13,15,13],[14,14,15,14],[14,15,15,15],[26,0,26,12],[28,0,29,12],[13,0,14,0],[5,0,6,12],[7,0,8,12],[10,0,10,12],[11,0,12,0],[11,2,12,2],[11,1,12,1],[11,3,11,4],[11,5,11,6],[11,7,11,8],[11,9,11,10],[11,11,11,12]]}
[{"$f":"+'Cover Page'!$B$29","v":"Annual Performance Report 2024"},null,null,null,null,null,null,null,{"$f":"+'Cover Page'!$B$33","v":"Suffolk EfW"}]
[]
["Emissions to Air (continuously monitored)"]
[null,null,null,null,null,null,null,null,null,null,null,null,null,"Notes:"]
["Summary of monitoring undertaken, standards used and compliance",null,null,null,null,null,null,null,null,null,null,null,null,"Template may require adjustment for any bespoke monitoring requirements of permit"]
["The CEMS set up comprises a multigas analyser, FID analyser and oxygen probe for extractive sampling where flue gases are drawn continuously via a heated line to the analysers in the CEMS room for each incineration line. In situ sampling i.e. where the probes are installed directly into the flue gas flow in the stack is for the dust probes only. The set up for the duty analysers is mirrored by the standby analysers. The standby analysers can be switched between incineration Lines 1 and 2 as required. Continuous monitoring is provided by the CEMS as required by the permit. The CEMS are installed in accordance with EN14181 and relevant Environment Agency guidance.",null,null,null,null,null,null,null,null,null,null,null,null,"Please check that all default ELV values match those for your plant and edit if necessary!"]
[null,null,null,null,null,null,null,null,null,null,null,null,null,"Report to 1 decimal place"]
[]
[]
[]
["Results of emissions to air that are continuously monitored (maximum and average values for each line) - oxygen reference 11%"]
["Substance","Reference Period","Emission Limit Value","A1",null,"A2",null,"A3",null,"A4",null,"A5"]
[null,null,null,"Max.","Avg.","Max.","Avg.","Max.","Avg.","Max.","Avg.","Max.","Avg."]
["Oxides of nitrogen","Daily mean","180 mg/m3 ",{"$f":"NOx!$O$19","v":174},{"$f":"NOx!$N$19","v":164.12590381287205},{"$f":"NOx!$O$34","v":173.8},{"$f":"NOx!$N$34","v":165.24216931754941}]
[null,"½ hourly mean","400 mg/m3 ",{"$f":"NOx!$M$19","v":231.41694641113281},{"$f":"NOx!$L$19","v":163.60245594149845},{"$f":"NOx!$M$34","v":291},{"$f":"NOx!$L$34","v":165.22063490917722}]
["Particulates","Daily mean","5 mg/m3",{"$f":"Particulates!$O$19","v":2.2000000000000002},{"$f":"Particulates!$N$19","v":1.1875303535776773},{"$f":"Particulates!$O$34","v":2.2999999999999998},{"$f":"Particulates!$N$34","v":1.4030902873416762}]
[null,"½ hourly mean","30 mg/m3 ",{"$f":"Particulates!$M$19","v":3.2},{"$f":"Particulates!$L$19","v":1.2083333333333335},{"$f":"Particulates!$M$34","v":3.5},{"$f":"Particulates!$L$34","v":1.4083333333333332}]
["Total Organic Carbon ","Daily mean","10 mg/m3 ",{"$f":"TOC!$O$19","v":0.7},{"$f":"TOC!$N$19","v":0.27991950660829518},{"$f":"TOC!$O$34","v":4.0999999999999996},{"$f":"TOC!$N$34","v":0.36363941916444281}]
[null,"½ hourly mean","20 mg/m3 ",{"$f":"TOC!$M$19","v":68.7},{"$f":"TOC!$L$19","v":0.31666666666666671},{"$f":"TOC!$M$34","v":64},{"$f":"TOC!$L$34","v":0.375}]
["Hydrogen chloride ","Daily mean","8 mg/m3 ",{"$f":"HCl!$O$19","v":6.2337131500244141},{"$f":"HCl!$N$19","v":3.4319828756155246},{"$f":"HCl!$O$34","v":6.4},{"$f":"HCl!$N$34","v":3.3653162089488577}]
[null,"½ hourly mean","60 mg/m3 ",{"$f":"HCl!$M$19","v":82.603477478027344},{"$f":"HCl!$L$19","v":3.3721746561423949},{"$f":"HCl!$M$34","v":28.04},{"$f":"HCl!$L$34","v":3.0154446404371078}]
["Sulphur dioxide","Daily mean","40 mg/m3 ",{"$f":"'SO2'!$O$19","v":38.286354064941406},{"$f":"'SO2'!$N$19","v":25.66080888570276},{"$f":"'SO2'!$O$34","v":33},{"$f":"'SO2'!$N$34","v":23.970250500880095}]
[null,"½ hourly mean","200 mg/m3 ",{"$f":"'SO2'!$M$19","v":246.90864562988281},{"$f":"'SO2'!$L$19","v":25.539186043508014},{"$f":"'SO2'!$M$34","v":138.4},{"$f":"'SO2'!$L$34","v":23.89774880254609}]
["Carbon monoxide ","Daily mean","50 mg/m3 ",{"$f":"'CO 95% 10 min'!Q20","v":12.6},{"$f":"'CO 95% 10 min'!P20","v":2.64},{"$f":"'CO 95% 10 min'!Q35","v":12.3},{"$f":"'CO 95% 10 min'!P35","v":3.0641666666666665}]
[null,"95%ile 10-min avg","150 mg/m3",{"$f":"MAX('CO 95% 10 min'!M8:M19)","v":1472.8},{"$f":"'CO 95% 10 min'!M20","v":213.77166666666665},{"$f":"MAX('CO 95% 10 min'!M23:M34)","v":549.70000000000005},{"$f":"'CO 95% 10 min'!M35","v":88.225000000000009}]
[" Ammonia","Daily mean","15 mg/m3 ",{"$f":"'NH3'!$O$19","v":1.3},{"$f":"'NH3'!$N$19","v":0.6283333333333333},{"$f":"'NH3'!$O$34","v":2.4},{"$f":"'NH3'!$N$34","v":0.74500000000000011}]
[]
["Comments :"]

{"sheet":"HCl","index":15,"n_rows":79,"n_cols":17,"rows_kept":79,"cut":false,"hidden":false,"merged":[[12,16,15,18],[51,9,63,9],[66,9,78,9],[4,9,4,14],[4,1,4,3],[4,4,4,6],[48,0,51,6],[47,0,47,6],[6,9,18,9],[21,9,33,9],[36,9,48,9],[3,16,7,18],[9,16,11,18],[18,4,18,6]]}
[{"$f":"+'Cover Page'!$B$29","v":"Annual Performance Report 2024"},null,null,null,{"$f":"+'Cover Page'!$B$33","v":"Suffolk EfW"}]
[]
["Monitoring of Hydrogen Chloride emissions",null,null,"Whole Installation",null,null,"See  Notes in Cell Q3",null,null,{"$f":"+A3","v":"Monitoring of Hydrogen Chloride emissions"},null,null,null,"Per Combustion Line",null,null,"Notes:"]
[null,null,null,null,null,null,null,null,null,null,null,null,null,null,null,null,"User to add logic to complete Whole installation, Table A5:G18. From the data in Per Combustion Line, Table J6:O79, subject to No. of lines installed"]
[{"$f":"+'Cover Page'!C39","v":2024},"1/2 Hourly Reference Periods",null,null,"Daily Reference Periods"]
["mg/Nm3","1/2 hourly HCl ELV","Monthly mean of half-hourly averages","Highest half- hourly average","Daily HCl ELV","Monthly mean of  daily averages","Highest daily average",null,null,{"$f":"+A5","v":2024},"mg/Nm3","Monthly mean of half-hourly averages","Highest half- hourly average","Monthly mean of  daily averages","Highest daily average"]
["Jan",60,{"$f":"AVERAGE(L7,L22,L37,L52,L67)","v":1.5027419354838707},{"$f":"MAX(M7,M22,M37,M52,M67)","v":5.18},8,{"$f":"AVERAGE(N7,N22,N37,N52,N67)","v":1.8874193548387093},{"$f":"MAX(O7,O22,O37,O52,O67)","v":2.54},null,null,"A1","Jan",1.8874193548387093,5.18,1.8874193548387093,2.54]
["Feb",60,{"$f":"AVERAGE(L8,L23,L38,L53,L68)","v":2.0875310344827582},{"$f":"MAX(M8,M23,M38,M53,M68)","v":8.4499999999999993},8,{"$f":"AVERAGE(N8,N23,N38,N53,N68)","v":1.9034615384615376},{"$f":"MAX(O8,O23,O38,O53,O68)","v":4.8},null,null,null,"Feb",1.8558620689655165,8.4499999999999993,1.9034615384615376,4.34]
["Mar",60,1.8371522460959149,62.84796142578125,8,{"$f":"AVERAGE(N9,N24,N39,N54,N69)","v":2.0000000000000004},4.9192209243774414,null,null,null,"Mar",2.0236695859057843,62.84796142578125,2.0000000000000004,3.3240540027618408,null,"Whole Installation table A5:G18:"]
["Apr",60,2.4254761904761906,28.04,8,3.4666666666666668,6.4,null,null,null,"Apr",2.7642857142857147,9.9600000000000009,3.4666666666666668,5.17,null,"Mean: for 1/2 hourly and daily periods calculate mean of values across all operational combustion lines for the month"]
["May",60,2.9667741935483862,12.69,8,3.2677419354838717,5.69,null,null,null,"May",3.2535483870967736,12.69,3.2677419354838717,5.69]
["Jun",60,3.2608161927132109,16.844772338867188,8,3.1799999999999997,4.9501252174377441,null,null,null,"Jun",3.1829235426253741,16.844772338867188,3.1799999999999997,4.9501252174377441]
["Jul",60,3.6612246059124636,16.275497436523438,8,3.6806451612903222,4.9731278419494629,null,null,null,"Jul",3.6831779691623052,9.3324031829833984,3.6806451612903222,4.9731278419494629,null,"Maximum: for 1/2 hourly and daily periods use the highest value across all operational combustion lines for the month"]
["Aug",60,4.804545719118658,82.603477478027344,8,5.032258064516129,5.8866400718688965,null,null,null,"Aug",5.0324774789874276,82.603477478027344,5.032258064516129,5.8866400718688965]
["Sep",60,4.7498404057489498,8.4515781402587891,8,4.883333333333332,5.3644218444824219,null,null,null,"Sep",4.8835489721761807,8.4515781402587891,4.883333333333332,5.3644218444824219]
["Oct",60,4.2078585676176052,10.424869537353516,8,4.4440476042883734,5.180305004119873,null,null,null,"Oct",4.4467014259349193,10.424869537353516,4.4440476042883734,5.180305004119873]
["Nov",60,3.600200528105149,13.828899383544922,8,3.7682208485073514,5.099463939666748,null,null,null,"Nov",3.8192654327221369,13.828899383544922,3.7682208485073514,5.099463939666748]
["Dec",60,3.2215541601738584,17.819761276245117,8,3.27,6.2337131500244141,null,null,null,"Dec",3.6332159410078932,17.819761276245117,3.67,6.2337131500244141]
[null,null,null,null,null,null,null,null,null,null,"Annual",{"$f":"AVERAGE(L7:L18)","v":3.3721746561423949},{"$f":"MAX(M7:M18)","v":82.603477478027344},{"$f":"AVERAGE(N7:N18)","v":3.4319828756155246},{"$f":"MAX(O7:O18)","v":6.2337131500244141}]
[]
[null,null,null,null,null,null,null,null,null,{"$f":"+A5","v":2024},"mg/Nm3","Monthly mean of half-hourly averages","Highest half- hourly average","Monthly mean of  daily averages","Highest daily average"]
[null,null,null,null,null,null,null,null,null,"A2","Jan",1.1180645161290321,5.12,1.8874193548387093,1.84]
[null,null,null,null,null,null,null,null,null,null,"Feb",2.3192000000000004,8.36,1.9034615384615376,4.8]
[null,null,null,null,null,null,null,null,null,null,"Mar",1.6506349062860453,8.9623222351074219,2.0000000000000004,4.9192209243774414]
[null,null,null,null,null,null,null,null,null,null,"Apr",2.0866666666666664,28.04,3.4666666666666668,6.4]
[null,null,null,null,null,null,null,null,null,null,"May",2.6799999999999993,9.52,3.2677419354838717,4.62]
[null,null,null,null,null,null,null,null,null,null,"Jun",3.3387088428010472,7.4660768508911133,3.1799999999999997,4.891746997833252]
[null,null,null,null,null,null,null,null,null,null,"Jul",3.6392712426626219,16.275497436523438,3.6806451612903222,4.9061050415039063]
[null,null,null,null,null,null,null,null,null,null,"Aug",4.5766139592498885,15.533587455749512,5.032258064516129,5.2926878929138184]
[null,null,null,null,null,null,null,null,null,null,"Sep",4.616131839321719,6.8318362236022949,4.883333333333332,5.0165491104125977]
[null,null,null,null,null,null,null,null,null,null,"Oct",3.9690157093002916,7.5732011795043945,4.4440476042883734,4.7992649078369141]
[null,null,null,null,null,null,null,null,null,null,"Nov",3.3811356234881611,9.570857048034668,3.7682208485073514,5.0155692100524902]
[null,null,null,null,null,null,null,null,null,null,"Dec",2.8098923793398241,6.4130439758300781,2.87,4.7811698913574219]
[null,null,null,null,null,null,null,null,null,null,"Annual",{"$f":"AVERAGE(L22:L33)","v":3.0154446404371078},{"$f":"MAX(M22:M33)","v":28.04},{"$f":"AVERAGE(N22:N33)","v":3.3653162089488577},{"$f":"MAX(O22:O33)","v":6.4}]
[]
[null,null,null,null,null,null,null,null,null,{"$f":"+A5","v":2024},"mg/Nm3","Monthly mean of half-hourly averages","Highest half- hourly average","Monthly mean of  daily averages","Highest daily average"]
[null,null,null,null,null,null,null,null,null,"A3","Jan"]
[null,null,null,null,null,null,null,null,null,null,"Feb"]
[null,null,null,null,null,null,null,null,null,null,"Mar"]
[null,null,null,null,null,null,null,null,null,null,"Apr"]
[null,null,null,null,null,null,null,null,null,null,"May"]
[null,null,null,null,null,null,null,null,null,null,"Jun"]
[null,null,null,null,null,null,null,null,null,null,"Jul"]
[null,null,null,null,null,null,null,null,null,null,"Aug"]
[null,null,null,null,null,null,null,null,null,null,"Sep"]
[null,null,null,null,null,null,null,null,null,null,"Oct"]
[null,null,null,null,null,null,null,null,null,null,"Nov"]
["Comments :",null,null,null,null,null,null,null,null,null,"Dec"]
["Some erroneous data for Line 1 removed for March 13th.",null,null,null,null,null,null,null,null,null,"Annual",{"$f":"AVERAGE(L37:L48)","v":{"$error":"#DIV/0!"}},{"$f":"MAX(M37:M48)","v":0},{"$f":"AVERAGE(N37:N48)","v":{"$error":"#DIV/0!"}},{"$f":"MAX(O37:O48)","v":0}]
[]
[null,null,null,null,null,null,null,null,null,{"$f":"+A5","v":2024},"mg/Nm3","Monthly mean of half-hourly averages","Highest half- hourly average","Monthly mean of  daily averages","Highest daily average"]
[null,null,null,null,null,null,null,null,null,"A4","Jan"]
[null,null,null,null,null,null,null,null,null,null,"Feb"]
[null,null,null,null,null,null,null,null,null,null,"Mar"]
[null,null,null,null,null,null,null,null,null,null,"Apr"]
[null,null,null,null,null,null,null,null,null,null,"May"]
[null,null,null,null,null,null,null,null,null,null,"Jun"]
[null,null,null,null,null,null,null,null,null,null,"Jul"]
[null,null,null,null,null,null,null,null,null,null,"Aug"]
[null,null,null,null,null,null,null,null,null,null,"Sep"]
[null,null,null,null,null,null,null,null,null,null,"Oct"]
[null,null,null,null,null,null,null,null,null,null,"Nov"]
[null,null,null,null,null,null,null,null,null,null,"Dec"]
[null,null,null,null,null,null,null,null,null,null,"Annual",{"$f":"AVERAGE(L52:L63)","v":{"$error":"#DIV/0!"}},{"$f":"MAX(M52:M63)","v":0},{"$f":"AVERAGE(N52:N63)","v":{"$error":"#DIV/0!"}},{"$f":"MAX(O52:O63)","v":0}]
[]
[null,null,null,null,null,null,null,null,null,{"$f":"+A5","v":2024},"mg/Nm3","Monthly mean of half-hourly averages","Highest half- hourly average","Monthly mean of  daily averages","Highest daily average"]
[null,null,null,null,null,null,null,null,null,"A5","Jan"]
[null,null,null,null,null,null,null,null,null,null,"Feb"]
[null,null,null,null,null,null,null,null,null,null,"Mar"]
[null,null,null,null,null,null,null,null,null,null,"Apr"]
[null,null,null,null,null,null,null,null,null,null,"May"]
[null,null,null,null,null,null,null,null,null,null,"Jun"]
[null,null,null,null,null,null,null,null,null,null,"Jul"]
[null,null,null,null,null,null,null,null,null,null,"Aug"]
[null,null,null,null,null,null,null,null,null,null,"Sep"]
[null,null,null,null,null,null,null,null,null,null,"Oct"]
[null,null,null,null,null,null,null,null,null,null,"Nov"]
[null,null,null,null,null,null,null,null,null,null,"Dec"]
[null,null,null,null,null,null,null,null,null,null,"Annual",{"$f":"AVERAGE(L67:L78)","v":{"$error":"#DIV/0!"}},{"$f":"MAX(M67:M78)","v":0},{"$f":"AVERAGE(N67:N78)","v":{"$error":"#DIV/0!"}},{"$f":"MAX(O67:O78)","v":0}]

{"sheet":"SO2","index":16,"n_rows":79,"n_cols":17,"rows_kept":79,"cut":false,"hidden":false,"merged":[[3,16,7,18],[9,16,11,18],[12,16,15,18],[66,9,78,9],[4,1,4,3],[4,4,4,6],[4,9,4,14],[6,9,18,9],[21,9,33,9],[36,9,48,9],[47,0,47,6],[48,0,51,6],[51,9,63,9],[18,4,18,6]]}
[{"$f":"+'Cover Page'!$B$29","v":"Annual Performance Report 2024"},null,null,null,{"$f":"+'Cover Page'!$B$33","v":"Suffolk EfW"}]
[]
["Monitoring of Sulphur dioxide emissions",null,null,"Whole Installation",null,null,"See  Notes in Cell Q3",null,null,{"$f":"+A3","v":"Monitoring of Sulphur dioxide emissions"},null,null,null,"Per Combustion Line",null,null,"Notes:"]
[null,null,null,null,null,null,null,null,null,null,null,null,null,null,null,null,"User to add logic to complete Whole installation, Table A5:G18. From the data in Per Combustion Line, Table J6:O79, subject to No. of lines installed"]
[{"$f":"+'Cover Page'!C39","v":2024},"1/2 Hourly Reference Periods",null,null,"Daily Reference Periods"]
["mg/Nm3","1/2 hourly SO2 ELV","Monthly mean of half-hourly averages","Highest half- hourly average","Daily SO2 ELV","Monthly mean of  daily averages","Highest daily average",null,null,{"$f":"+A5","v":2024},"mg/Nm3","Monthly mean of half-hourly averages","Highest half- hourly average","Monthly mean of  daily averages","Highest daily average"]
["Jan",200,{"$f":"AVERAGE(L7,L22,L37,L52,L67)","v":29.482258064516127},{"$f":"MAX(M7,M22,M37,M52,M67)","v":138.4},40,{"$f":"AVERAGE(N7,N22,N37,N52,N67)","v":29.45752688172043},{"$f":"MAX(O7,O22,O37,O52,O67)","v":34.799999999999997},null,null,"A1","Jan",28.948387096774194,114,28.948387096774194,34.799999999999997]
["Feb",200,{"$f":"AVERAGE(L8,L23,L38,L53,L68)","v":27.643241379310346},{"$f":"MAX(M8,M23,M38,M53,M68)","v":111.4},40,{"$f":"AVERAGE(N8,N23,N38,N53,N68)","v":28.056089743589745},{"$f":"MAX(O8,O23,O38,O53,O68)","v":32.5},null,null,null,"Feb",29.234482758620693,100,29.803846153846159,32.5]
["Mar",200,27.516933234302375,246.90864562988281,40,27.593145161290323,38.286354064941406,null,null,null,"Mar",28.97749943309579,246.90864562988281,29.125000000000004,38.286354064941406,null,"Whole Installation table A5:G18:"]
["Apr",200,22.633333333333333,62.9,40,22.91060606060606,30.2,null,null,null,"Apr",19.699999999999996,53.1,20.066666666666666,26.4,null,"Mean: for 1/2 hourly and daily periods calculate mean of values across all operational combustion lines for the month"]
["May",200,23.387258064516129,120.3,40,23.320189098998888,33.1,null,null,null,"May",24.964516129032258,102.8,24.964516129032258,33.1]
["Jun",200,24.434363787141343,61.152568817138672,40,24.427528735632183,30.674716949462891,null,null,null,"Jun",25.895810990201102,61.152568817138672,25.903333333333329,30.372882843017578]
["Jul",200,24.225304229302509,93.910110473632813,40,24.290107526881719,30.453847885131836,null,null,null,"Jul",24.794754422745132,61.791011810302734,24.793548387096774,30.078977584838867,null,"Maximum: for 1/2 hourly and daily periods use the highest value across all operational combustion lines for the month"]
["Aug",200,18.025468911712924,144.21871948242188,40,18.075576036866362,29.098896026611328,null,null,null,"Aug",20.225690920506754,144.21871948242188,20.222580645161297,29.098896026611328]
["Sep",200,20.738649574087724,48.339061737060547,40,20.740000000000002,31.54670524597168,null,null,null,"Sep",21.967881038453843,47.186752319335938,21.970000000000006,31.54670524597168]
["Oct",200,22.624319375194922,83.681732177734375,40,22.933117223795129,31.040519714355469,null,null,null,"Oct",23.542143046137799,83.681732177734375,23.861448662621633,31.040519714355469]
["Nov",200,27.386735053588914,111.64461517333984,40,27.532469850116307,34.811084747314453,null,null,null,"Nov",28.57890989925458,111.64461517333984,28.870379553900825,34.811084747314453]
["Dec",200,28.523744069317985,140.81767272949219,40,28.45,37.46405029296875,null,null,null,"Dec",29.640156787274034,140.81767272949219,29.4,37.46405029296875]
[null,null,null,null,null,null,null,null,null,null,"Annual",{"$f":"AVERAGE(L7:L18)","v":25.539186043508014},{"$f":"MAX(M7:M18)","v":246.90864562988281},{"$f":"AVERAGE(N7:N18)","v":25.66080888570276},{"$f":"MAX(O7:O18)","v":38.286354064941406}]
[]
[null,null,null,null,null,null,null,null,null,{"$f":"+A5","v":2024},"mg/Nm3","Monthly mean of half-hourly averages","Highest half- hourly average","Monthly mean of  daily averages","Highest daily average"]
[null,null,null,null,null,null,null,null,null,"A2","Jan",30.016129032258061,138.4,29.966666666666665,33]
[null,null,null,null,null,null,null,null,null,null,"Feb",26.052,111.4,26.308333333333334,32.299999999999997]
[null,null,null,null,null,null,null,null,null,null,"Mar",26.056367035508959,71.967666625976563,26.061290322580639,28.604080200195313]
[null,null,null,null,null,null,null,null,null,null,"Apr",25.566666666666666,62.9,25.754545454545454,30.2]
[null,null,null,null,null,null,null,null,null,null,"May",21.81,120.3,21.675862068965518,28.6]
[null,null,null,null,null,null,null,null,null,null,"Jun",22.972916584081585,54.447738647460938,22.951724137931038,30.674716949462891]
[null,null,null,null,null,null,null,null,null,null,"Jul",23.655854035859889,93.910110473632813,23.786666666666669,30.453847885131836]
[null,null,null,null,null,null,null,null,null,null,"Aug",15.825246902919092,130.86927795410156,15.928571428571425,24.165813446044922]
[null,null,null,null,null,null,null,null,null,null,"Sep",19.509418109721608,48.339061737060547,19.509999999999998,27.123323440551758]
[null,null,null,null,null,null,null,null,null,null,"Oct",21.706495704252045,70.540214538574219,22.004785784968622,29.596776962280273]
[null,null,null,null,null,null,null,null,null,null,"Nov",26.194560207923253,62.200752258300781,26.194560146331789,31.850780487060547]
[null,null,null,null,null,null,null,null,null,null,"Dec",27.407331351361933,82.309982299804688,27.5,32.043403625488281]
[null,null,null,null,null,null,null,null,null,null,"Annual",{"$f":"AVERAGE(L22:L33)","v":23.89774880254609},{"$f":"MAX(M22:M33)","v":138.4},{"$f":"AVERAGE(N22:N33)","v":23.970250500880095},{"$f":"MAX(O22:O33)","v":33}]
[]
[null,null,null,null,null,null,null,null,null,{"$f":"+A5","v":2024},"mg/Nm3","Monthly mean of half-hourly averages","Highest half- hourly average","Monthly mean of  daily averages","Highest daily average"]
[null,null,null,null,null,null,null,null,null,"A3","Jan"]
[null,null,null,null,null,null,null,null,null,null,"Feb"]
[null,null,null,null,null,null,null,null,null,null,"Mar"]
[null,null,null,null,null,null,null,null,null,null,"Apr"]
[null,null,null,null,null,null,null,null,null,null,"May"]
[null,null,null,null,null,null,null,null,null,null,"Jun"]
[null,null,null,null,null,null,null,null,null,null,"Jul"]
[null,null,null,null,null,null,null,null,null,null,"Aug"]
[null,null,null,null,null,null,null,null,null,null,"Sep"]
[null,null,null,null,null,null,null,null,null,null,"Oct"]
[null,null,null,null,null,null,null,null,null,null,"Nov"]
["Comments :",null,null,null,null,null,null,null,null,null,"Dec"]
[null,null,null,null,null,null,null,null,null,null,"Annual",{"$f":"AVERAGE(L37:L48)","v":{"$error":"#DIV/0!"}},{"$f":"MAX(M37:M48)","v":0},{"$f":"AVERAGE(N37:N48)","v":{"$error":"#DIV/0!"}},{"$f":"MAX(O37:O48)","v":0}]
[]
[null,null,null,null,null,null,null,null,null,{"$f":"+A5","v":2024},"mg/Nm3","Monthly mean of half-hourly averages","Highest half- hourly average","Monthly mean of  daily averages","Highest daily average"]
[null,null,null,null,null,null,null,null,null,"A4","Jan"]
[null,null,null,null,null,null,null,null,null,null,"Feb"]
[null,null,null,null,null,null,null,null,null,null,"Mar"]
[null,null,null,null,null,null,null,null,null,null,"Apr"]
[null,null,null,null,null,null,null,null,null,null,"May"]
[null,null,null,null,null,null,null,null,null,null,"Jun"]
[null,null,null,null,null,null,null,null,null,null,"Jul"]
[null,null,null,null,null,null,null,null,null,null,"Aug"]
[null,null,null,null,null,null,null,null,null,null,"Sep"]
[null,null,null,null,null,null,null,null,null,null,"Oct"]
[null,null,null,null,null,null,null,null,null,null,"Nov"]
[null,null,null,null,null,null,null,null,null,null,"Dec"]
[null,null,null,null,null,null,null,null,null,null,"Annual",{"$f":"AVERAGE(L52:L63)","v":{"$error":"#DIV/0!"}},{"$f":"MAX(M52:M63)","v":0},{"$f":"AVERAGE(N52:N63)","v":{"$error":"#DIV/0!"}},{"$f":"MAX(O52:O63)","v":0}]
[]
[null,null,null,null,null,null,null,null,null,{"$f":"+A5","v":2024},"mg/Nm3","Monthly mean of half-hourly averages","Highest half- hourly average","Monthly mean of  daily averages","Highest daily average"]
[null,null,null,null,null,null,null,null,null,"A5","Jan"]
[null,null,null,null,null,null,null,null,null,null,"Feb"]
[null,null,null,null,null,null,null,null,null,null,"Mar"]
[null,null,null,null,null,null,null,null,null,null,"Apr"]
[null,null,null,null,null,null,null,null,null,null,"May"]
[null,null,null,null,null,null,null,null,null,null,"Jun"]
[null,null,null,null,null,null,null,null,null,null,"Jul"]
[null,null,null,null,null,null,null,null,null,null,"Aug"]
[null,null,null,null,null,null,null,null,null,null,"Sep"]
[null,null,null,null,null,null,null,null,null,null,"Oct"]
[null,null,null,null,null,null,null,null,null,null,"Nov"]
[null,null,null,null,null,null,null,null,null,null,"Dec"]
[null,null,null,null,null,null,null,null,null,null,"Annual",{"$f":"AVERAGE(L67:L78)","v":{"$error":"#DIV/0!"}},{"$f":"MAX(M67:M78)","v":0},{"$f":"AVERAGE(N67:N78)","v":{"$error":"#DIV/0!"}},{"$f":"MAX(O67:O78)","v":0}]

{"sheet":"NOx","index":17,"n_rows":79,"n_cols":17,"rows_kept":79,"cut":false,"hidden":false,"merged":[[3,16,7,18],[9,16,11,18],[12,16,15,18],[66,9,78,9],[4,1,4,3],[4,4,4,6],[4,9,4,14],[6,9,18,9],[21,9,33,9],[36,9,48,9],[47,0,47,6],[48,0,51,6],[51,9,63,9],[18,4,18,6]]}
[{"$f":"+'Cover Page'!$B$29","v":"Annual Performance Report 2024"},null,null,null,{"$f":"+'Cover Page'!$B$33","v":"Suffolk EfW"}]
[]
["Monitoring of Oxides of Nitrogen emissions",null,null,"Whole Installation",null,null,"See  Notes in Cell Q3",null,null,{"$f":"+A3","v":"Monitoring of Oxides of Nitrogen emissions"},null,null,null,"Per Combustion Line",null,null,"Notes:"]
[null,null,null,null,null,null,null,null,null,null,null,null,null,null,null,null,"User to add logic to complete Whole installation, Table A5:G18. From the data in Per Combustion Line, Table J6:O79, subject to No. of lines installed"]
[{"$f":"+'Cover Page'!C39","v":2024},"1/2 Hourly Reference Periods",null,null,"Daily Reference Periods"]
["mg/Nm3","1/2 hourly NOx ELV","Monthly mean of half-hourly averages","Highest half- hourly average","Daily NOx ELV","Monthly mean of  daily averages","Highest daily average",null,null,{"$f":"+A5","v":2024},"mg/Nm3","Monthly mean of half-hourly averages","Highest half- hourly average","Monthly mean of  daily averages","Highest daily average"]
["Jan",400,{"$f":"AVERAGE(L7,L22,L37,L52,L67)","v":165.55483870967743},{"$f":"MAX(M7,M22,M37,M52,M67)","v":234.9},180,{"$f":"AVERAGE(N7,N22,N37,N52,N67)","v":165.61075268817206},{"$f":"MAX(O7,O22,O37,O52,O67)","v":171.1},null,null,"A1","Jan",165.33870967741936,206.7,165.35483870967741,171.1]
["Feb",400,{"$f":"AVERAGE(L8,L23,L38,L53,L68)","v":165.09227586206899},{"$f":"MAX(M8,M23,M38,M53,M68)","v":291},180,{"$f":"AVERAGE(N8,N23,N38,N53,N68)","v":165.65544871794873},{"$f":"MAX(O8,O23,O38,O53,O68)","v":173.8},null,null,null,"Feb",164.29655172413794,204.2,165.26923076923077,167.3]
["Mar",400,165.18248773294061,284.88775634765625,180,165.34811827956992,172.85330200195313,null,null,null,"Mar",164.85139979637782,227.85292053222656,165.18333333333334,167.50645446777344,null,"Whole Installation table A5:G18:"]
["Apr",400,165.90714285714287,230.6,180,167.78787878787878,174,null,null,null,"Apr",165.91428571428574,215.7,169.66666666666666,174,null,"Mean: for 1/2 hourly and daily periods calculate mean of values across all operational combustion lines for the month"]
["May",400,165.22672043010755,216.2,180,165.14015572858733,167.7,null,null,null,"May",164.69677419354841,188.8,164.93548387096774,165.1]
["Jun",400,164.89099389248886,277.60690307617188,180,165.00459770114941,171.44032287597656,null,null,null,"Jun",164.63461744520399,231.41694641113281,164.73333333333332,168.08456420898438]
["Jul",400,164.53291207957395,216.45814514160156,180,164.55736559139783,167.12022399902344,null,null,null,"Jul",163.96400398300571,181.66145324707031,163.95806451612901,164.80024719238281,null,"Maximum: for 1/2 hourly and daily periods use the highest value across all operational combustion lines for the month"]
["Aug",400,164.14373728015119,196.61622619628906,180,164.16100230414747,165.37020874023438,null,null,null,"Aug",163.75928456296202,196.61622619628906,163.76129032258063,164.87118530273438]
["Sep",400,163.9572141647339,192.17973327636719,180,163.96000000000004,165.27241516113281,null,null,null,"Sep",162.94741423924765,192.17973327636719,162.95000000000007,164.838623046875]
["Oct",400,163.09683187085395,188.52388000488281,180,163.3029277740963,165.49229431152344,null,null,null,"Oct",161.39574944423836,188.52388000488281,161.81569780622209,164.6414794921875]
["Nov",400,162.47793687862253,188.87973022460938,180,162.63019120958117,165.20707702636719,null,null,null,"Nov",160.47839650343715,177.75245666503906,160.78290642632379,164.0074462890625]
["Dec",400,162.87545334569234,217.28868103027344,180,163.05000000000001,170.31684875488281,null,null,null,"Dec",160.95228401411745,217.28868103027344,161.1,170.31684875488281]
[null,null,null,null,null,null,null,null,null,null,"Annual",{"$f":"AVERAGE(L7:L18)","v":163.60245594149845},{"$f":"MAX(M7:M18)","v":231.41694641113281},{"$f":"AVERAGE(N7:N18)","v":164.12590381287205},{"$f":"MAX(O7:O18)","v":174}]
[]
[null,null,null,null,null,null,null,null,null,{"$f":"+A5","v":2024},"mg/Nm3","Monthly mean of half-hourly averages","Highest half- hourly average","Monthly mean of  daily averages","Highest daily average"]
[null,null,null,null,null,null,null,null,null,"A2","Jan",165.77096774193549,234.9,165.86666666666667,170]
[null,null,null,null,null,null,null,null,null,null,"Feb",165.88800000000003,291,166.04166666666666,173.8]
[null,null,null,null,null,null,null,null,null,null,"Mar",165.51357566950338,284.88775634765625,165.51290322580647,172.85330200195313]
[null,null,null,null,null,null,null,null,null,null,"Apr",165.9,230.6,165.90909090909091,168.2]
[null,null,null,null,null,null,null,null,null,null,"May",165.75666666666666,216.2,165.34482758620689,167.7]
[null,null,null,null,null,null,null,null,null,null,"Jun",165.14737033977374,277.60690307617188,165.27586206896552,171.44032287597656]
[null,null,null,null,null,null,null,null,null,null,"Jul",165.10182017614218,216.45814514160156,165.15666666666664,167.12022399902344]
[null,null,null,null,null,null,null,null,null,null,"Aug",164.52818999734035,184.34342956542969,164.56071428571431,165.37020874023438]
[null,null,null,null,null,null,null,null,null,null,"Sep",164.96701409022015,186.59750366210938,164.97,165.27241516113281]
[null,null,null,null,null,null,null,null,null,null,"Oct",164.79791429746953,182.10432434082031,164.79015774197049,165.49229431152344]
[null,null,null,null,null,null,null,null,null,null,"Nov",164.4774772538079,188.87973022460938,164.47747599283855,165.20707702636719]
[null,null,null,null,null,null,null,null,null,null,"Dec",164.79862267726722,196.0863037109375,165,168.1943359375]
[null,null,null,null,null,null,null,null,null,null,"Annual",{"$f":"AVERAGE(L22:L33)","v":165.22063490917722},{"$f":"MAX(M22:M33)","v":291},{"$f":"AVERAGE(N22:N33)","v":165.24216931754941},{"$f":"MAX(O22:O33)","v":173.8}]
[]
[null,null,null,null,null,null,null,null,null,{"$f":"+A5","v":2024},"mg/Nm3","Monthly mean of half-hourly averages","Highest half- hourly average","Monthly mean of  daily averages","Highest daily average"]
[null,null,null,null,null,null,null,null,null,"A3","Jan"]
[null,null,null,null,null,null,null,null,null,null,"Feb"]
[null,null,null,null,null,null,null,null,null,null,"Mar"]
[null,null,null,null,null,null,null,null,null,null,"Apr"]
[null,null,null,null,null,null,null,null,null,null,"May"]
[null,null,null,null,null,null,null,null,null,null,"Jun"]
[null,null,null,null,null,null,null,null,null,null,"Jul"]
[null,null,null,null,null,null,null,null,null,null,"Aug"]
[null,null,null,null,null,null,null,null,null,null,"Sep"]
[null,null,null,null,null,null,null,null,null,null,"Oct"]
[null,null,null,null,null,null,null,null,null,null,"Nov"]
["Comments :",null,null,null,null,null,null,null,null,null,"Dec"]
[null,null,null,null,null,null,null,null,null,null,"Annual",{"$f":"AVERAGE(L37:L48)","v":{"$error":"#DIV/0!"}},{"$f":"MAX(M37:M48)","v":0},{"$f":"AVERAGE(N37:N48)","v":{"$error":"#DIV/0!"}},{"$f":"MAX(O37:O48)","v":0}]
[]
[null,null,null,null,null,null,null,null,null,{"$f":"+A5","v":2024},"mg/Nm3","Monthly mean of half-hourly averages","Highest half- hourly average","Monthly mean of  daily averages","Highest daily average"]
[null,null,null,null,null,null,null,null,null,"A4","Jan"]
[null,null,null,null,null,null,null,null,null,null,"Feb"]
[null,null,null,null,null,null,null,null,null,null,"Mar"]
[null,null,null,null,null,null,null,null,null,null,"Apr"]
[null,null,null,null,null,null,null,null,null,null,"May"]
[null,null,null,null,null,null,null,null,null,null,"Jun"]
[null,null,null,null,null,null,null,null,null,null,"Jul"]
[null,null,null,null,null,null,null,null,null,null,"Aug"]
[null,null,null,null,null,null,null,null,null,null,"Sep"]
[null,null,null,null,null,null,null,null,null,null,"Oct"]
[null,null,null,null,null,null,null,null,null,null,"Nov"]
[null,null,null,null,null,null,null,null,null,null,"Dec"]
[null,null,null,null,null,null,null,null,null,null,"Annual",{"$f":"AVERAGE(L52:L63)","v":{"$error":"#DIV/0!"}},{"$f":"MAX(M52:M63)","v":0},{"$f":"AVERAGE(N52:N63)","v":{"$error":"#DIV/0!"}},{"$f":"MAX(O52:O63)","v":0}]
[]
[null,null,null,null,null,null,null,null,null,{"$f":"+A5","v":2024},"mg/Nm3","Monthly mean of half-hourly averages","Highest half- hourly average","Monthly mean of  daily averages","Highest daily average"]
[null,null,null,null,null,null,null,null,null,"A5","Jan"]
[null,null,null,null,null,null,null,null,null,null,"Feb"]
[null,null,null,null,null,null,null,null,null,null,"Mar"]
[null,null,null,null,null,null,null,null,null,null,"Apr"]
[null,null,null,null,null,null,null,null,null,null,"May"]
[null,null,null,null,null,null,null,null,null,null,"Jun"]
[null,null,null,null,null,null,null,null,null,null,"Jul"]
[null,null,null,null,null,null,null,null,null,null,"Aug"]
[null,null,null,null,null,null,null,null,null,null,"Sep"]
[null,null,null,null,null,null,null,null,null,null,"Oct"]
[null,null,null,null,null,null,null,null,null,null,"Nov"]
[null,null,null,null,null,null,null,null,null,null,"Dec"]
[null,null,null,null,null,null,null,null,null,null,"Annual",{"$f":"AVERAGE(L67:L78)","v":{"$error":"#DIV/0!"}},{"$f":"MAX(M67:M78)","v":0},{"$f":"AVERAGE(N67:N78)","v":{"$error":"#DIV/0!"}},{"$f":"MAX(O67:O78)","v":0}]

{"sheet":"TOC","index":18,"n_rows":79,"n_cols":17,"rows_kept":79,"cut":false,"hidden":false,"merged":[[3,16,7,18],[9,16,11,18],[12,16,15,18],[66,9,78,9],[4,1,4,3],[4,4,4,6],[4,9,4,14],[6,9,18,9],[21,9,33,9],[36,9,48,9],[47,0,47,6],[48,0,51,6],[51,9,63,9]]}
[{"$f":"+'Cover Page'!$B$29","v":"Annual Performance Report 2024"},null,null,null,{"$f":"+'Cover Page'!$B$33","v":"Suffolk EfW"}]
[]
["Monitoring of Total organic carbon emissions",null,null,"Whole Installation",null,null,"See  Notes in Cell Q3",null,null,{"$f":"+A3","v":"Monitoring of Total organic carbon emissions"},null,null,null,"Per Combustion Line",null,null,"Notes:"]
[null,null,null,null,null,null,null,null,null,null,null,null,null,null,null,null,"User to add logic to complete Whole installation, Table A5:G18. From the data in Per Combustion Line, Table J6:O79, subject to No. of lines installed"]
[{"$f":"+'Cover Page'!C39","v":2024},"1/2 Hourly Reference Periods",null,null,"Daily Reference Periods"]
["mg/Nm3","1/2 hourly TOC ELV","Monthly mean of half-hourly averages","Highest half- hourly average","Daily TOC ELV","Monthly mean of  daily averages","Highest daily average",null,null,{"$f":"+A5","v":2024},"mg/Nm3","Monthly mean of half-hourly averages","Highest half- hourly average","Monthly mean of  daily averages","Highest daily average"]
["Jan",20,{"$f":"AVERAGE(L7,L22,L37,L52,L67)","v":0.35},{"$f":"MAX(M7,M22,M37,M52,M67)","v":11.2},10,{"$f":"AVERAGE(N7,N22,N37,N52,N67)","v":0.36311827956989257},{"$f":"MAX(O7,O22,O37,O52,O67)","v":1.1000000000000001},null,null,"A1","Jan",0.3,11.2,0.31290322580645163,0.6]
["Feb",20,{"$f":"AVERAGE(L8,L23,L38,L53,L68)","v":0.6},{"$f":"MAX(M8,M23,M38,M53,M68)","v":68.7},10,{"$f":"AVERAGE(N8,N23,N38,N53,N68)","v":0.41201923076923092},{"$f":"MAX(O8,O23,O38,O53,O68)","v":0.9},null,null,null,"Feb",0.7,68.7,0.3615384615384617,0.5]
["Mar",20,0.45,16.399999999999999,10,0.45255376344086029,0.8,null,null,null,"Mar",0.4,16.399999999999999,0.40833333333333344,0.7,null,"Whole Installation table A5:G18:"]
["Apr",20,0.64999999999999991,13.5,10,0.6333333333333333,1.1000000000000001,null,null,null,"Apr",0.6,2.5,0.56666666666666665,0.6,null,"Mean: for 1/2 hourly and daily periods calculate mean of values across all operational combustion lines for the month"]
["May",20,0.55000000000000004,5.8,10,0.50489432703003345,1.1000000000000001,null,null,null,"May",0.4,4.0999999999999996,0.35806451612903223,0.7]
["Jun",20,0.35,7.5,10,0.34551724137931039,0.8,null,null,null,"Jun",0.3,7.5,0.26,0.5]
["Jul",20,0.3,8.4,10,0.28887096774193549,0.5,null,null,null,"Jul",0.3,6.7,0.26774193548387099,0.4,null,"Maximum: for 1/2 hourly and daily periods use the highest value across all operational combustion lines for the month"]
["Aug",20,0.25,64,10,0.28237327188940081,4.0999999999999996,null,null,null,"Aug",0.2,13.8,0.22903225806451608,0.5]
["Sep",20,0.2,9.4,10,0.19000000000000006,0.3,null,null,null,"Sep",0.2,9.4,0.19333333333333338,0.3]
["Oct",20,0.15000000000000002,22.6,10,0.14491278511255232,0.6,null,null,null,"Oct",0.2,22.6,0.15750360748331463,0.6]
["Nov",20,0.15000000000000002,7.7,10,0.13876035436987877,0.3,null,null,null,"Nov",0.1,7.7,0.12391674146056175,0.3]
["Dec",20,0.15000000000000002,62.8,10,0.105,0.33,null,null,null,"Dec",0.1,7.8,0.12,0.33]
[null,null,null,null,null,null,null,null,null,null,"Annual",{"$f":"AVERAGE(L7:L18)","v":0.31666666666666671},{"$f":"MAX(M7:M18)","v":68.7},{"$f":"AVERAGE(N7:N18)","v":0.27991950660829518},{"$f":"MAX(O7:O18)","v":0.7}]
[]
[null,null,null,null,null,null,null,null,null,{"$f":"+A5","v":2024},"mg/Nm3","Monthly mean of half-hourly averages","Highest half- hourly average","Monthly mean of  daily averages","Highest daily average"]
[null,null,null,null,null,null,null,null,null,"A2","Jan",0.4,5.2,0.4133333333333335,1.1000000000000001]
[null,null,null,null,null,null,null,null,null,null,"Feb",0.5,16.100000000000001,0.46250000000000013,0.9]
[null,null,null,null,null,null,null,null,null,null,"Mar",0.5,13.7,0.49677419354838709,0.8]
[null,null,null,null,null,null,null,null,null,null,"Apr",0.7,13.5,0.70000000000000007,1.1000000000000001]
[null,null,null,null,null,null,null,null,null,null,"May",0.7,5.8,0.65172413793103456,1.1000000000000001]
[null,null,null,null,null,null,null,null,null,null,"Jun",0.4,7.4,0.43103448275862083,0.8]
[null,null,null,null,null,null,null,null,null,null,"Jul",0.3,8.4,0.31,0.5]
[null,null,null,null,null,null,null,null,null,null,"Aug",0.3,64,0.33571428571428558,4.0999999999999996]
[null,null,null,null,null,null,null,null,null,null,"Sep",0.2,8.6999999999999993,0.1866666666666667,0.3]
[null,null,null,null,null,null,null,null,null,null,"Oct",0.1,9.4,0.13232196274179001,0.3]
[null,null,null,null,null,null,null,null,null,null,"Nov",0.2,4.0999999999999996,0.15360396727919579,0.3]
[null,null,null,null,null,null,null,null,null,null,"Dec",0.2,62.8,0.09,0.26]
[null,null,null,null,null,null,null,null,null,null,"Annual",{"$f":"AVERAGE(L22:L33)","v":0.375},{"$f":"MAX(M22:M33)","v":64},{"$f":"AVERAGE(N22:N33)","v":0.36363941916444281},{"$f":"MAX(O22:O33)","v":4.0999999999999996}]
[]
[null,null,null,null,null,null,null,null,null,{"$f":"+A5","v":2024},"mg/Nm3","Monthly mean of half-hourly averages","Highest half- hourly average","Monthly mean of  daily averages","Highest daily average"]
[null,null,null,null,null,null,null,null,null,"A3","Jan"]
[null,null,null,null,null,null,null,null,null,null,"Feb"]
[null,null,null,null,null,null,null,null,null,null,"Mar"]
[null,null,null,null,null,null,null,null,null,null,"Apr"]
[null,null,null,null,null,null,null,null,null,null,"May"]
[null,null,null,null,null,null,null,null,null,null,"Jun"]
[null,null,null,null,null,null,null,null,null,null,"Jul"]
[null,null,null,null,null,null,null,null,null,null,"Aug"]
[null,null,null,null,null,null,null,null,null,null,"Sep"]
[null,null,null,null,null,null,null,null,null,null,"Oct"]
[null,null,null,null,null,null,null,null,null,null,"Nov"]
["Comments :",null,null,null,null,null,null,null,null,null,"Dec"]
[null,null,null,null,null,null,null,null,null,null,"Annual",{"$f":"AVERAGE(L37:L48)","v":{"$error":"#DIV/0!"}},{"$f":"MAX(M37:M48)","v":0},{"$f":"AVERAGE(N37:N48)","v":{"$error":"#DIV/0!"}},{"$f":"MAX(O37:O48)","v":0}]
[]
[null,null,null,null,null,null,null,null,null,{"$f":"+A5","v":2024},"mg/Nm3","Monthly mean of half-hourly averages","Highest half- hourly average","Monthly mean of  daily averages","Highest daily average"]
[null,null,null,null,null,null,null,null,null,"A4","Jan"]
[null,null,null,null,null,null,null,null,null,null,"Feb"]
[null,null,null,null,null,null,null,null,null,null,"Mar"]
[null,null,null,null,null,null,null,null,null,null,"Apr"]
[null,null,null,null,null,null,null,null,null,null,"May"]
[null,null,null,null,null,null,null,null,null,null,"Jun"]
[null,null,null,null,null,null,null,null,null,null,"Jul"]
[null,null,null,null,null,null,null,null,null,null,"Aug"]
[null,null,null,null,null,null,null,null,null,null,"Sep"]
[null,null,null,null,null,null,null,null,null,null,"Oct"]
[null,null,null,null,null,null,null,null,null,null,"Nov"]
[null,null,null,null,null,null,null,null,null,null,"Dec"]
[null,null,null,null,null,null,null,null,null,null,"Annual",{"$f":"AVERAGE(L52:L63)","v":{"$error":"#DIV/0!"}},{"$f":"MAX(M52:M63)","v":0},{"$f":"AVERAGE(N52:N63)","v":{"$error":"#DIV/0!"}},{"$f":"MAX(O52:O63)","v":0}]
[]
[null,null,null,null,null,null,null,null,null,{"$f":"+A5","v":2024},"mg/Nm3","Monthly mean of half-hourly averages","Highest half- hourly average","Monthly mean of  daily averages","Highest daily average"]
[null,null,null,null,null,null,null,null,null,"A5","Jan"]
[null,null,null,null,null,null,null,null,null,null,"Feb"]
[null,null,null,null,null,null,null,null,null,null,"Mar"]
[null,null,null,null,null,null,null,null,null,null,"Apr"]
[null,null,null,null,null,null,null,null,null,null,"May"]
[null,null,null,null,null,null,null,null,null,null,"Jun"]
[null,null,null,null,null,null,null,null,null,null,"Jul"]
[null,null,null,null,null,null,null,null,null,null,"Aug"]
[null,null,null,null,null,null,null,null,null,null,"Sep"]
[null,null,null,null,null,null,null,null,null,null,"Oct"]
[null,null,null,null,null,null,null,null,null,null,"Nov"]
[null,null,null,null,null,null,null,null,null,null,"Dec"]
[null,null,null,null,null,null,null,null,null,null,"Annual",{"$f":"AVERAGE(L67:L78)","v":{"$error":"#DIV/0!"}},{"$f":"MAX(M67:M78)","v":0},{"$f":"AVERAGE(N67:N78)","v":{"$error":"#DIV/0!"}},{"$f":"MAX(O67:O78)","v":0}]

{"sheet":"Particulates","index":19,"n_rows":79,"n_cols":17,"rows_kept":79,"cut":false,"hidden":false,"merged":[[4,16,8,18],[10,16,12,18],[13,16,16,18],[66,9,78,9],[4,1,4,3],[4,4,4,6],[4,9,4,14],[6,9,18,9],[21,9,33,9],[36,9,48,9],[47,0,47,6],[48,0,51,6],[51,9,63,9],[18,4,18,6]]}
[{"$f":"+'Cover Page'!$B$29","v":"Annual Performance Report 2024"},null,null,null,{"$f":"+'Cover Page'!$B$33","v":"Suffolk EfW"}]
[]
["Monitoring of Particulate matter emissions",null,null,"Whole Installation",null,null,"See  Notes in Cell Q3",null,null,{"$f":"+A3","v":"Monitoring of Particulate matter emissions"},null,null,null,"Per Combustion Line",null,null,"Notes:"]
[]
[{"$f":"+'Cover Page'!C39","v":2024},"1/2 Hourly Reference Periods",null,null,"Daily Reference Periods",null,null,null,null,null,null,null,null,null,null,null,"User to add logic to complete Whole installation, Table A5:G18. From the data in Per Combustion Line, Table J6:O79, subject to No. of lines installed"]
["mg/Nm3","1/2 hourly PM ELV","Monthly mean of half-hourly averages","Highest half- hourly average","Daily PM ELV","Monthly mean of  daily averages","Highest daily average",null,null,{"$f":"+A5","v":2024},"mg/Nm3","Monthly mean of half-hourly averages","Highest half- hourly average","Monthly mean of  daily averages","Highest daily average"]
["Jan",30,{"$f":"AVERAGE(L7,L22,L37,L52,L67)","v":0.8},{"$f":"MAX(M7,M22,M37,M52,M67)","v":1.3},5,{"$f":"AVERAGE(N7,N22,N37,N52,N67)","v":0.79526881720430131},{"$f":"MAX(O7,O22,O37,O52,O67)","v":1.2},null,null,"A1","Jan",0.5,0.9,0.4838709677419355,0.8]
["Feb",30,{"$f":"AVERAGE(L8,L23,L38,L53,L68)","v":0.85},{"$f":"MAX(M8,M23,M38,M53,M68)","v":2.2000000000000002},5,{"$f":"AVERAGE(N8,N23,N38,N53,N68)","v":0.82980769230769202},{"$f":"MAX(O8,O23,O38,O53,O68)","v":1.2},null,null,null,"Feb",0.7,1.2,0.68461538461538451,0.8]
["Mar",30,1,3.5,5,1.0260752688172046,2.2999999999999998,null,null,null,"Mar",0.8,0.9,0.81666666666666687,0.9]
["Apr",30,0.79999999999999993,2.9,5,0.6863636363636364,1.7,null,null,null,"Apr",0.2,1,0,0,null,"Whole Installation table A5:G18:"]
["May",30,1.05,2.2000000000000002,5,1.055339265850946,1.6,null,null,null,"May",0.6,1.4,0.64516129032258063,1.3,null,"Mean: for 1/2 hourly and daily periods calculate mean of values across all operational combustion lines for the month"]
["Jun",30,1.4500000000000002,2,5,1.4180459770114944,1.6,null,null,null,"Jun",1.3,1.6,1.2533333333333327,1.4]
["Jul",30,1.55,2.5,5,1.548064516129033,1.8,null,null,null,"Jul",1.5,2.5,1.5161290322580649,1.8]
["Aug",30,1.65,2.1,5,1.6630760368663586,1.9,null,null,null,"Aug",1.8,2.1,1.8225806451612889,1.9,null,"Maximum: for 1/2 hourly and daily periods use the highest value across all operational combustion lines for the month"]
["Sep",30,1.7,2.4,5,1.6883333333333332,2.1,null,null,null,"Sep",1.9,2.4,1.8833333333333333,2.1]
["Oct",30,1.8,3.2,5,1.7927275186493281,2.2000000000000002,null,null,null,"Oct",2.1,3.2,2.0515378883906772,2.2000000000000002]
["Nov",30,1.7000000000000002,2.2999999999999998,5,1.6706217829827907,2,null,null,null,"Nov",1.8,2.2999999999999998,1.7831357011088618,2]
["Dec",30,1.35,1.8,5,1.37,1.6,null,null,null,"Dec",1.3,1.8,1.31,1.6]
[null,null,null,null,null,null,null,null,null,null,"Annual",{"$f":"AVERAGE(L7:L18)","v":1.2083333333333335},{"$f":"MAX(M7:M18)","v":3.2},{"$f":"AVERAGE(N7:N18)","v":1.1875303535776773},{"$f":"MAX(O7:O18)","v":2.2000000000000002}]
[]
[null,null,null,null,null,null,null,null,null,{"$f":"+A5","v":2024},"mg/Nm3","Monthly mean of half-hourly averages","Highest half- hourly average","Monthly mean of  daily averages","Highest daily average"]
[null,null,null,null,null,null,null,null,null,"A2","Jan",1.1000000000000001,1.3,1.1066666666666671,1.2]
[null,null,null,null,null,null,null,null,null,null,"Feb",1,2.2000000000000002,0.97499999999999964,1.2]
[null,null,null,null,null,null,null,null,null,null,"Mar",1.2,3.5,1.2354838709677423,2.2999999999999998]
[null,null,null,null,null,null,null,null,null,null,"Apr",1.4,2.9,1.3727272727272728,1.7]
[null,null,null,null,null,null,null,null,null,null,"May",1.5,2.2000000000000002,1.4655172413793112,1.6]
[null,null,null,null,null,null,null,null,null,null,"Jun",1.6,2,1.582758620689656,1.6]
[null,null,null,null,null,null,null,null,null,null,"Jul",1.6,1.9,1.5800000000000007,1.6]
[null,null,null,null,null,null,null,null,null,null,"Aug",1.5,2,1.5035714285714283,1.6]
[null,null,null,null,null,null,null,null,null,null,"Sep",1.5,1.7,1.4933333333333332,1.5]
[null,null,null,null,null,null,null,null,null,null,"Oct",1.5,2.2999999999999998,1.5339171489079793,1.6]
[null,null,null,null,null,null,null,null,null,null,"Nov",1.6,1.7,1.5581078648567199,1.6]
[null,null,null,null,null,null,null,null,null,null,"Dec",1.4,1.7,1.43,1.6]
[null,null,null,null,null,null,null,null,null,null,"Annual",{"$f":"AVERAGE(L22:L33)","v":1.4083333333333332},{"$f":"MAX(M22:M33)","v":3.5},{"$f":"AVERAGE(N22:N33)","v":1.4030902873416762},{"$f":"MAX(O22:O33)","v":2.2999999999999998}]
[]
[null,null,null,null,null,null,null,null,null,{"$f":"+A5","v":2024},"mg/Nm3","Monthly mean of half-hourly averages","Highest half- hourly average","Monthly mean of  daily averages","Highest daily average"]
[null,null,null,null,null,null,null,null,null,"A3","Jan"]
[null,null,null,null,null,null,null,null,null,null,"Feb"]
[null,null,null,null,null,null,null,null,null,null,"Mar"]
[null,null,null,null,null,null,null,null,null,null,"Apr"]
[null,null,null,null,null,null,null,null,null,null,"May"]
[null,null,null,null,null,null,null,null,null,null,"Jun"]
[null,null,null,null,null,null,null,null,null,null,"Jul"]
[null,null,null,null,null,null,null,null,null,null,"Aug"]
[null,null,null,null,null,null,null,null,null,null,"Sep"]
[null,null,null,null,null,null,null,null,null,null,"Oct"]
[null,null,null,null,null,null,null,null,null,null,"Nov"]
["Comments :",null,null,null,null,null,null,null,null,null,"Dec"]
["Some erroneous data for Line 1 removed for March 13th.",null,null,null,null,null,null,null,null,null,"Annual",{"$f":"AVERAGE(L37:L48)","v":{"$error":"#DIV/0!"}},{"$f":"MAX(M37:M48)","v":0},{"$f":"AVERAGE(N37:N48)","v":{"$error":"#DIV/0!"}},{"$f":"MAX(O37:O48)","v":0}]
[]
[null,null,null,null,null,null,null,null,null,{"$f":"+A5","v":2024},"mg/Nm3","Monthly mean of half-hourly averages","Highest half- hourly average","Monthly mean of  daily averages","Highest daily average"]
[null,null,null,null,null,null,null,null,null,"A4","Jan"]
[null,null,null,null,null,null,null,null,null,null,"Feb"]
[null,null,null,null,null,null,null,null,null,null,"Mar"]
[null,null,null,null,null,null,null,null,null,null,"Apr"]
[null,null,null,null,null,null,null,null,null,null,"May"]
[null,null,null,null,null,null,null,null,null,null,"Jun"]
[null,null,null,null,null,null,null,null,null,null,"Jul"]
[null,null,null,null,null,null,null,null,null,null,"Aug"]
[null,null,null,null,null,null,null,null,null,null,"Sep"]
[null,null,null,null,null,null,null,null,null,null,"Oct"]
[null,null,null,null,null,null,null,null,null,null,"Nov"]
[null,null,null,null,null,null,null,null,null,null,"Dec"]
[null,null,null,null,null,null,null,null,null,null,"Annual",{"$f":"AVERAGE(L52:L63)","v":{"$error":"#DIV/0!"}},{"$f":"MAX(M52:M63)","v":0},{"$f":"AVERAGE(N52:N63)","v":{"$error":"#DIV/0!"}},{"$f":"MAX(O52:O63)","v":0}]
[]
[null,null,null,null,null,null,null,null,null,{"$f":"+A5","v":2024},"mg/Nm3","Monthly mean of half-hourly averages","Highest half- hourly average","Monthly mean of  daily averages","Highest daily average"]
[null,null,null,null,null,null,null,null,null,"A5","Jan"]
[null,null,null,null,null,null,null,null,null,null,"Feb"]
[null,null,null,null,null,null,null,null,null,null,"Mar"]
[null,null,null,null,null,null,null,null,null,null,"Apr"]
[null,null,null,null,null,null,null,null,null,null,"May"]
[null,null,null,null,null,null,null,null,null,null,"Jun"]
[null,null,null,null,null,null,null,null,null,null,"Jul"]
[null,null,null,null,null,null,null,null,null,null,"Aug"]
[null,null,null,null,null,null,null,null,null,null,"Sep"]
[null,null,null,null,null,null,null,null,null,null,"Oct"]
[null,null,null,null,null,null,null,null,null,null,"Nov"]
[null,null,null,null,null,null,null,null,null,null,"Dec"]
[null,null,null,null,null,null,null,null,null,null,"Annual",{"$f":"AVERAGE(L67:L78)","v":{"$error":"#DIV/0!"}},{"$f":"MAX(M67:M78)","v":0},{"$f":"AVERAGE(N67:N78)","v":{"$error":"#DIV/0!"}},{"$f":"MAX(O67:O78)","v":0}]

{"sheet":"CO 95% 10 min","index":20,"n_rows":80,"n_cols":19,"rows_kept":80,"cut":false,"hidden":false,"merged":[[4,18,8,20],[10,18,12,20],[13,18,16,20],[67,10,79,10],[5,1,5,4],[5,5,5,7],[5,10,5,16],[7,10,19,10],[22,10,34,10],[37,10,49,10],[48,0,48,7],[49,0,52,7],[52,10,64,10]]}
[{"$f":"+'Cover Page'!$B$29","v":"Annual Performance Report 2024"},null,null,null,{"$f":"+'Cover Page'!$B$33","v":"Suffolk EfW"}]
[]
["Monitoring of Carbon Monoxide (10-minute avg)",null,null,null,"Whole Installation",null,null,"See  Notes in Cell S3",null,{"$f":"+A3","v":"Monitoring of Carbon Monoxide (10-minute avg)"},null,null,null,null,"Per Combustion Line",null,"Notes:",null,"Notes:"]
[]
[null,null,null,null,null,null,null,null,null,null,null,null,null,null,null,null,null,null,"User to add logic to complete Whole installation, Table A5:H18. From the data in Per Combustion Line, Table K6:Q79, subject to No. of lines installed"]
[{"$f":"+'Cover Page'!C39","v":2024},"10-minute Reference Periods",null,null,null,"Daily Reference Periods"]
["mg/Nm3","95%ile 10-min avg CO ELV","Highest daily 95%ile 10-min average","Monthly mean of 10-min averages","Highest 10-min average","Daily CO ELV","Monthly mean of  daily averages","Highest daily average",null,null,{"$f":"+A6","v":2024},"mg/Nm3","Highest daily 95%ile 10-min average","Monthly mean of 10-min averages","Highest 10-min average","Monthly mean of  daily averages","Highest daily average"]
["Jan",150,{"$f":"AVERAGE(M8,M23,M38,M53,M68)","v":49.05},{"$f":"AVERAGE(N8,N23,N38,N53,N68)","v":3.45},{"$f":"MAX(O8,O23,O38,O53,O68)","v":426},50,{"$f":"AVERAGE(P8,P23,P38,P53,P68)","v":3.4349999999999996},{"$f":"MAX(Q8,Q23,Q38,Q53,Q68)","v":12.6},null,null,"A1","Jan",73.7,3.3,338,3.32,12.6]
["Feb",{"$f":"+B8","v":150},{"$f":"AVERAGE(M9,M24,M39,M54,M69)","v":586.1},{"$f":"AVERAGE(N9,N24,N39,N54,N69)","v":6.8},{"$f":"MAX(O9,O24,O39,O54,O69)","v":841},{"$f":"+F8","v":50},{"$f":"AVERAGE(P9,P24,P39,P54,P69)","v":3.75},{"$f":"MAX(Q9,Q24,Q39,Q54,Q69)","v":10.199999999999999},null,null,null,"Feb",622.5,9.5,841,3.45,10.199999999999999]
["Mar",{"$f":"+B9","v":150},755,3,1633,{"$f":"+F9","v":50},2.92,9.1,null,null,null,"Mar",1472.8,4.0999999999999996,1633,3.5,9.1,null,"Whole Installation table A5:H18:"]
["Apr",150,{"$f":"AVERAGE(M11,M26,M41,M56,M71)","v":7.75},2,462,50,1.7400000000000002,11.6,null,null,null,"Apr",4.0999999999999996,1.7,233,1.03,2.6,null,"Mean: for 10-min and daily periods use average of all operational combustion lines."]
["May",150,43.7,3.3499999999999996,423,50,2.6349999999999998,12.3,null,null,null,"May",20.6,2.4,423,1,2]
["Jun",150,54.930000000000007,6.9499999999999993,510,50,2.8650000000000002,11.9,null,null,null,"Jun",30.96,4.7,443,1.85,2.7]
["Jul",150,57.3,6.15,510,50,2.62,8.5,null,null,null,"Jul",66.8,6,321,2.44,7.5,null,"Maximum: for 10-min and daily periods use the highest of all operational combustion lines in any month."]
["Aug",150,104.25,6.55,3172,50,2.1949999999999998,4.4000000000000004,null,null,null,"Aug",45.6,6,338,2.38,3.6]
["Sep",150,30.65,4.5500000000000007,380,50,2.5649999999999999,4.2,null,null,null,"Sep",38.4,4.4000000000000004,331,2.3199999999999998,3.6]
["Oct",150,55.75,5.3,451,50,2.7800000000000002,5.6,null,null,null,"Oct",86.2,5.5,451,2.84,5.6]
["Nov",150,30.75,5.0999999999999996,383,50,2.75,4.7,null,null,null,"Nov",34.5,5.3,358,2.75,4.7]
["Dec",150,36.75,6.25,858,50,3.9699999999999998,4.8,null,null,null,"Dec",69.099999999999994,6.8,319,4.8,4.8]
[null,null,null,null,null,null,null,null,null,null,null,"Annual",{"$f":"AVERAGE(M8:M19)","v":213.77166666666665},null,{"$f":"MAX(O8:O19)","v":1633},{"$f":"AVERAGE(P8:P19)","v":2.64},{"$f":"MAX(Q8:Q19)","v":12.6}]
[]
[null,null,null,null,null,null,null,null,null,null,{"$f":"+A6","v":2024},"mg/Nm3","Highest daily 95%ile 10-min average","Monthly mean of 10-min averages","Highest 10-min average","Monthly mean of  daily averages","Highest daily average"]
[null,null,null,null,null,null,null,null,null,null,"A2","Jan",24.4,3.6,426,3.55,8]
[null,null,null,null,null,null,null,null,null,null,null,"Feb",549.70000000000005,4.0999999999999996,414,4.05,9.6]
[null,null,null,null,null,null,null,null,null,null,null,"Mar",37.200000000000003,1.9,666,2.34,6]
[null,null,null,null,null,null,null,null,null,null,null,"Apr",11.4,2.2999999999999998,462,2.4500000000000002,11.6]
[null,null,null,null,null,null,null,null,null,null,null,"May",66.8,4.3,385,4.2699999999999996,12.3]
[null,null,null,null,null,null,null,null,null,null,null,"Jun",78.900000000000006,9.1999999999999993,510,3.88,11.9]
[null,null,null,null,null,null,null,null,null,null,null,"Jul",47.8,6.3,510,2.8,8.5]
[null,null,null,null,null,null,null,null,null,null,null,"Aug",162.9,7.1,3172,2.0099999999999998,4.4000000000000004]
[null,null,null,null,null,null,null,null,null,null,null,"Sep",22.9,4.7,380,2.81,4.2]
[null,null,null,null,null,null,null,null,null,null,null,"Oct",25.3,5.0999999999999996,388,2.72,3.4]
[null,null,null,null,null,null,null,null,null,null,null,"Nov",27,4.9000000000000004,383,2.75,4]
[null,null,null,null,null,null,null,null,null,null,null,"Dec",4.4000000000000004,5.7,858,3.14,3.7]
[null,null,null,null,null,null,null,null,null,null,null,"Annual",{"$f":"AVERAGE(M23:M34)","v":88.225000000000009},null,{"$f":"MAX(O23:O34)","v":3172},{"$f":"AVERAGE(P23:P34)","v":3.0641666666666665},{"$f":"MAX(Q23:Q34)","v":12.3}]
[]
[null,null,null,null,null,null,null,null,null,null,{"$f":"+A6","v":2024},"mg/Nm3","Highest daily 95%ile 10-min average","Monthly mean of 10-min averages","Highest 10-min average","Monthly mean of  daily averages","Highest daily average"]
[null,null,null,null,null,null,null,null,null,null,"A3","Jan"]
[null,null,null,null,null,null,null,null,null,null,null,"Feb"]
[null,null,null,null,null,null,null,null,null,null,null,"Mar"]
[null,null,null,null,null,null,null,null,null,null,null,"Apr"]
[null,null,null,null,null,null,null,null,null,null,null,"May"]
[null,null,null,null,null,null,null,null,null,null,null,"Jun"]
[null,null,null,null,null,null,null,null,null,null,null,"Jul"]
[null,null,null,null,null,null,null,null,null,null,null,"Aug"]
[null,null,null,null,null,null,null,null,null,null,null,"Sep"]
[null,null,null,null,null,null,null,null,null,null,null,"Oct"]
[null,null,null,null,null,null,null,null,null,null,null,"Nov"]
["Comments :",null,null,null,null,null,null,null,null,null,null,"Dec"]
["Environment Agency explanatory note: The 10-minute average ELV is based on the “95th percentile”. In this case this means that 95% of the 10 minute averages in the relevant 24-hour period (i.e. 137) must be below 150 mg/Nm3, and 5% (i.e. 7) are allowed to be any value above 150 mg/Nm3. Whilst we expect operators to minimise CO emissions at all times, it is perfectly acceptable for the value of the maximum 10-minute average to be above 150 mg/Nm3, provided the 95th percentile ELV has been met for that period. ",null,null,null,null,null,null,null,null,null,null,"Annual",{"$f":"AVERAGE(M38:M49)","v":{"$error":"#DIV/0!"}},null,{"$f":"MAX(O38:O49)","v":0},{"$f":"AVERAGE(P38:P49)","v":{"$error":"#DIV/0!"}},{"$f":"MAX(Q38:Q49)","v":0}]
[]
[null,null,null,null,null,null,null,null,null,null,{"$f":"+A6","v":2024},"mg/Nm3","Highest daily 95%ile 10-min average","Monthly mean of 10-min averages","Highest 10-min average","Monthly mean of  daily averages","Highest daily average"]
[null,null,null,null,null,null,null,null,null,null,"A4","Jan"]
[null,null,null,null,null,null,null,null,null,null,null,"Feb"]
[null,null,null,null,null,null,null,null,null,null,null,"Mar"]
[null,null,null,null,null,null,null,null,null,null,null,"Apr"]
[null,null,null,null,null,null,null,null,null,null,null,"May"]
[null,null,null,null,null,null,null,null,null,null,null,"Jun"]
[null,null,null,null,null,null,null,null,null,null,null,"Jul"]
[null,null,null,null,null,null,null,null,null,null,null,"Aug"]
[null,null,null,null,null,null,null,null,null,null,null,"Sep"]
[null,null,null,null,null,null,null,null,null,null,null,"Oct"]
[null,null,null,null,null,null,null,null,null,null,null,"Nov"]
[null,null,null,null,null,null,null,null,null,null,null,"Dec"]
[null,null,null,null,null,null,null,null,null,null,null,"Annual",{"$f":"AVERAGE(M53:M64)","v":{"$error":"#DIV/0!"}},null,{"$f":"MAX(O53:O64)","v":0},{"$f":"AVERAGE(P53:P64)","v":{"$error":"#DIV/0!"}},{"$f":"MAX(Q53:Q64)","v":0}]
[]
[null,null,null,null,null,null,null,null,null,null,{"$f":"+A6","v":2024},"mg/Nm3","95%ile 10-min avg maximum","Monthly CO 10-min avg mean","10-min avg maximum","Monthly daily mean","Monthly daily maximum"]
[null,null,null,null,null,null,null,null,null,null,"A5","Jan"]
[null,null,null,null,null,null,null,null,null,null,null,"Feb"]
[null,null,null,null,null,null,null,null,null,null,null,"Mar"]
[null,null,null,null,null,null,null,null,null,null,null,"Apr"]
[null,null,null,null,null,null,null,null,null,null,null,"May"]
[null,null,null,null,null,null,null,null,null,null,null,"Jun"]
[null,null,null,null,null,null,null,null,null,null,null,"Jul"]
[null,null,null,null,null,null,null,null,null,null,null,"Aug"]
[null,null,null,null,null,null,null,null,null,null,null,"Sep"]
[null,null,null,null,null,null,null,null,null,null,null,"Oct"]
[null,null,null,null,null,null,null,null,null,null,null,"Nov"]
[null,null,null,null,null,null,null,null,null,null,null,"Dec"]
[null,null,null,null,null,null,null,null,null,null,null,"Annual",{"$f":"AVERAGE(M68:M79)","v":{"$error":"#DIV/0!"}},null,{"$f":"MAX(O68:O79)","v":0},{"$f":"AVERAGE(P68:P79)","v":{"$error":"#DIV/0!"}},{"$f":"MAX(Q68:Q79)","v":0}]

{"sheet":"NH3","index":21,"n_rows":79,"n_cols":17,"rows_kept":79,"cut":false,"hidden":false,"merged":[[3,16,7,18],[9,16,11,18],[12,16,15,18],[66,9,78,9],[4,1,4,3],[4,4,4,6],[4,9,4,14],[6,9,18,9],[21,9,33,9],[36,9,48,9],[47,0,47,6],[48,0,51,6],[51,9,63,9],[18,4,18,6]]}
[{"$f":"+'Cover Page'!$B$29","v":"Annual Performance Report 2024"},null,null,null,{"$f":"+'Cover Page'!$B$33","v":"Suffolk EfW"}]
[]
["Monitoring of Ammnonia emissions ",null,null,"Whole Installation",null,null,"See  Notes in Cell Q3",null,null,{"$f":"+A3","v":"Monitoring of Ammnonia emissions "},null,null,null,"Per Combustion Line",null,null,"Notes:"]
[null,null,null,null,null,null,null,null,null,null,null,null,null,null,null,null,"User to add logic to complete Whole installation, Table A5:G18. From the data in Per Combustion Line, Table J6:O79, subject to No. of lines installed"]
[{"$f":"+'Cover Page'!C39","v":2024},"1/2 Hourly Reference Periods",null,null,"Daily Reference Periods"]
["mg/Nm3","1/2 hourly NH3 ELV","Monthly mean of half-hourly averages","Highest half- hourly average","Daily NH3 ELV","Monthly mean of  daily averages","Highest daily average",null,null,{"$f":"+A5","v":2024},"mg/Nm3","Monthly mean of half-hourly averages","Highest half- hourly average","Monthly mean of  daily averages","Highest daily average"]
["Jan","None",{"$f":"AVERAGE(L7,L22,L37,L52,L67)","v":1},{"$f":"MAX(M7,M22,M37,M52,M67)","v":4.8},15,{"$f":"AVERAGE(N7,N22,N37,N52,N67)","v":0.95500000000000007},{"$f":"MAX(O7,O22,O37,O52,O67)","v":2.4},null,null,"A1","Jan",0.7,3.1,0.65,1.3]
["Feb",{"$f":"+B7","v":"None"},{"$f":"AVERAGE(L8,L23,L38,L53,L68)","v":0.75},{"$f":"MAX(M8,M23,M38,M53,M68)","v":25},15,{"$f":"AVERAGE(N8,N23,N38,N53,N68)","v":0.59},{"$f":"MAX(O8,O23,O38,O53,O68)","v":1.2},null,null,null,"Feb",0.9,25,0.61,1.1000000000000001]
["Mar",{"$f":"+B8","v":"None"},{"$f":"AVERAGE(L9,L24,L39,L54,L69)","v":0.75},4.7,15,0.74,1.9,null,null,null,"Mar",0.6,3.9,0.59,1,null,"Whole Installation table A5:G18:"]
["Apr","None",0.7,2.9,15,0.66500000000000004,1.1000000000000001,null,null,null,"Apr",0.6,2.2999999999999998,0.53,1.1000000000000001,null,"Mean: for 1/2 hourly and daily periods calculate mean of values across all operational combustion lines for the month"]
["May","None",0.75,3.9,15,0.71,2.4,null,null,null,"May",0.6,2.4,0.6,1]
["Jun","None",0.45,1.8,15,0.44,0.8,null,null,null,"Jun",0.5,1.6,0.46,0.8]
["Jul","None",{"$f":"AVERAGE(L13,L28,L43,L58,L73)","v":0.65},{"$f":"MAX(M13,M28,M43,M58,M73)","v":4},15,0.625,1.8,null,null,null,"Jul",0.5,2.6,0.45,0.8,null,"Maximum: for 1/2 hourly and daily periods use the highest value across all operational combustion lines for the month"]
["Aug","None",0.4,3.8,15,0.43,0.8,null,null,null,"Aug",0.4,1.9,0.44,0.8]
["Sep","None",0.5,3,15,0.5,1,null,null,null,"Sep",0.5,2,0.5,0.8]
["Oct","None",0.85,5.2,15,0.83,1.8,null,null,null,"Oct",0.7,4,0.69,1.3]
["Nov","None",0.75,4.0999999999999996,15,0.77499999999999991,2.2000000000000002,null,null,null,"Nov",0.7,4,0.71,1.2]
["Dec","None",0.6,10.7,15,0.98,1.1000000000000001,null,null,null,"Dec",0.6,1.8,1.31,0.9]
[null,null,null,null,null,null,null,null,null,null,"Annual",{"$f":"AVERAGE(L7:L18)","v":0.60833333333333339},{"$f":"MAX(M7:M18)","v":25},{"$f":"AVERAGE(N7:N18)","v":0.6283333333333333},{"$f":"MAX(O7:O18)","v":1.3}]
[]
[null,null,null,null,null,null,null,null,null,{"$f":"+A5","v":2024},"mg/Nm3","Monthly mean of half-hourly averages","Highest half- hourly average","Monthly mean of  daily averages","Highest daily average"]
[null,null,null,null,null,null,null,null,null,"A2","Jan",1.3,4.8,1.26,2.4]
[null,null,null,null,null,null,null,null,null,null,"Feb",0.6,19.600000000000001,0.56999999999999995,1.2]
[null,null,null,null,null,null,null,null,null,null,"Mar",0.9,4.7,0.89,1.9]
[null,null,null,null,null,null,null,null,null,null,"Apr",0.8,2.9,0.8,1.1000000000000001]
[null,null,null,null,null,null,null,null,null,null,"May",0.9,3.9,0.82,2.4]
[null,null,null,null,null,null,null,null,null,null,"Jun",0.4,1.8,0.42,0.8]
[null,null,null,null,null,null,null,null,null,null,"Jul",0.8,4,0.8,1.8]
[null,null,null,null,null,null,null,null,null,null,"Aug",0.4,3.8,0.42,0.6]
[null,null,null,null,null,null,null,null,null,null,"Sep",0.5,3,0.5,1]
[null,null,null,null,null,null,null,null,null,null,"Oct",1,5.2,0.97,1.8]
[null,null,null,null,null,null,null,null,null,null,"Nov",0.8,4.0999999999999996,0.84,2.2000000000000002]
[null,null,null,null,null,null,null,null,null,null,"Dec",0.6,10.7,0.65,1.1000000000000001]
[null,null,null,null,null,null,null,null,null,null,"Annual",{"$f":"AVERAGE(L22:L33)","v":0.75},{"$f":"MAX(M22:M33)","v":19.600000000000001},{"$f":"AVERAGE(N22:N33)","v":0.74500000000000011},{"$f":"MAX(O22:O33)","v":2.4}]
[]
[null,null,null,null,null,null,null,null,null,{"$f":"+A5","v":2024},"mg/Nm3","Monthly mean of half-hourly averages","Highest half- hourly average","Monthly mean of  daily averages","Highest daily average"]
[null,null,null,null,null,null,null,null,null,"A3","Jan"]
[null,null,null,null,null,null,null,null,null,null,"Feb"]
[null,null,null,null,null,null,null,null,null,null,"Mar"]
[null,null,null,null,null,null,null,null,null,null,"Apr"]
[null,null,null,null,null,null,null,null,null,null,"May"]
[null,null,null,null,null,null,null,null,null,null,"Jun"]
[null,null,null,null,null,null,null,null,null,null,"Jul"]
[null,null,null,null,null,null,null,null,null,null,"Aug"]
[null,null,null,null,null,null,null,null,null,null,"Sep"]
[null,null,null,null,null,null,null,null,null,null,"Oct"]
[null,null,null,null,null,null,null,null,null,null,"Nov"]
["Comments :",null,null,null,null,null,null,null,null,null,"Dec"]
["An indicated ELV value of zero in the table above means that no ammonia limit is/was set in the permit.  ",null,null,null,null,null,null,null,null,null,"Annual",{"$f":"AVERAGE(L37:L48)","v":{"$error":"#DIV/0!"}},{"$f":"MAX(M37:M48)","v":0},{"$f":"AVERAGE(N37:N48)","v":{"$error":"#DIV/0!"}},{"$f":"MAX(O37:O48)","v":0}]
[]
[null,null,null,null,null,null,null,null,null,{"$f":"+A5","v":2024},"mg/Nm3","Monthly mean of half-hourly averages","Highest half- hourly average","Monthly mean of  daily averages","Highest daily average"]
[null,null,null,null,null,null,null,null,null,"A4","Jan"]
[null,null,null,null,null,null,null,null,null,null,"Feb"]
[null,null,null,null,null,null,null,null,null,null,"Mar"]
[null,null,null,null,null,null,null,null,null,null,"Apr"]
[null,null,null,null,null,null,null,null,null,null,"May"]
[null,null,null,null,null,null,null,null,null,null,"Jun"]
[null,null,null,null,null,null,null,null,null,null,"Jul"]
[null,null,null,null,null,null,null,null,null,null,"Aug"]
[null,null,null,null,null,null,null,null,null,null,"Sep"]
[null,null,null,null,null,null,null,null,null,null,"Oct"]
[null,null,null,null,null,null,null,null,null,null,"Nov"]
[null,null,null,null,null,null,null,null,null,null,"Dec"]
[null,null,null,null,null,null,null,null,null,null,"Annual",{"$f":"AVERAGE(L52:L63)","v":{"$error":"#DIV/0!"}},{"$f":"MAX(M52:M63)","v":0},{"$f":"AVERAGE(N52:N63)","v":{"$error":"#DIV/0!"}},{"$f":"MAX(O52:O63)","v":0}]
[]
[null,null,null,null,null,null,null,null,null,{"$f":"+A5","v":2024},"mg/Nm3","Monthly mean of half-hourly averages","Highest half- hourly average","Monthly mean of  daily averages","Highest daily average"]
[null,null,null,null,null,null,null,null,null,"A5","Jan"]
[null,null,null,null,null,null,null,null,null,null,"Feb"]
[null,null,null,null,null,null,null,null,null,null,"Mar"]
[null,null,null,null,null,null,null,null,null,null,"Apr"]
[null,null,null,null,null,null,null,null,null,null,"May"]
[null,null,null,null,null,null,null,null,null,null,"Jun"]
[null,null,null,null,null,null,null,null,null,null,"Jul"]
[null,null,null,null,null,null,null,null,null,null,"Aug"]
[null,null,null,null,null,null,null,null,null,null,"Sep"]
[null,null,null,null,null,null,null,null,null,null,"Oct"]
[null,null,null,null,null,null,null,null,null,null,"Nov"]
[null,null,null,null,null,null,null,null,null,null,"Dec"]
[null,null,null,null,null,null,null,null,null,null,"Annual",{"$f":"AVERAGE(L67:L78)","v":{"$error":"#DIV/0!"}},{"$f":"MAX(M67:M78)","v":0},{"$f":"AVERAGE(N67:N78)","v":{"$error":"#DIV/0!"}},{"$f":"MAX(O67:O78)","v":0}]

{"sheet":"Template changes log","index":22,"n_rows":17,"n_cols":3,"rows_kept":17,"cut":false,"hidden":false,"merged":[]}
["Log of changes to template (Environment Agency use only)"]
[]
["Date","Description of change","New version number and date"]
["2024-01-16","Air (periodic) tab: corrected default O2 reference from 6 to 11% ","Version 23.5a (for incinerators) - 16/01/2024"]
["2024-09-23","Air (periodic) tab: corrected symbol for Thallium to Tl"]
["2024-09-23","Air (periodic) tab: removed last year's references to different emission limit values applying from 03/12/23 and updated all relevant ELVs"]
["2024-09-23","Tabs for continuously monitored pollutants (HCl, SO2 etc.): changed terminology in table headings to improve clarity"]
["2024-09-23","Tabs for continuously monitored pollutants (HCl, SO2 etc.): removed last year's references to different emission limit values applying from 03/12/23 and updated all relevant ELVs"]
["2024-09-23","Perf 1 tab: updated formula for water usage to report m3 rather than litres and corrected error with formula copying operator name"]
["2024-09-23","Operational Summary tab: table added on start-up's and shut-downs"]
["2024-09-23","Operational Summary tab: table added on dioxins and mercury protocols"]
["2024-09-23","Operational Summary tab: table added on AST, QAL 2 and calibration functions"]
["2024-09-23","CO2 N2O tab: various changes made to notes to reflect the fact that most plants should now have calibrated CEMS and flow meters + some have C14 samplers and more up to date industry data","Version 24a (for incinerators) - 23/09/24"]
["2024-01-08","CO2 N2O tab: Changed the N2O CO2 equivalence factor from 298 to 265 in line with recently updated government greenhouse gas figures: https://www.gov.uk/government/publications/greenhouse-gas-reporting-conversion-factors-2024"]
["2024-01-08","CO2 N2O tab: Added an additional requirement for municipal EfW plants to state the yearly average biogenic percentage of the waste by mass, and reference to a document which sets out a methodology for calculating NCV of waste from the results of C14 sampling."]
["2024-01-08","Permit Compliance tab: Two additional columns added + explanatory notes to the table entitled \"Summary of non-compliances under the permit\" to allow CCS scores to be stated where relevant. "]
["2024-01-08","Residue Quality tab: Note added explaining application of TOC and LOI limits and asking operators to report both metrics where measured. ","Version 24.1a (for incinerators) - 08/11/24"]